Workbook

Sheet Inputs
A1: Inputs
B3: Sep £2014 | C3: Source | D3: 2011 | E3: =D3+1 -> 2012 | F3: =E3+1 -> 2013 | G3: 2014 | H3: 2015 | I3: 2016 | J3: 2017 | K3: 2018 | L3: 2019 | M3: 2020 | N3: 2021 | O3: 2022 | P3: 2023 | Q3: 2024 | R3: 2025 | S3: 2026 | T3: 2027 | U3: 2028 | V3: 2029 | W3: 2030 | X3: 2031 | Y3: 2032 | Z3: 2033 | AA3: 2034 | AB3: 2035 | AC3: 2036 | AD3: 2037 | AE3: 2038 | AF3: 2039 | AG3: 2040 | AH3: 2041 | AI3: 2042 | AJ3: 2043 | AK3: 2044 | AL3: 2045 | AM3: 2046
E4: PNGL12 Retro Adj Actuals | F4: PNGL12 Retro Adj Actuals | G4: GD14 Retro Adj Actuals (INCL EAST DOWN) | H4: GD14 Retro Adj Forecast (INCL EAST DOWN) | I4: GD14 Retro Adj Forecast (INCL EAST DOWN) | J4: GD17 Determination | K4: GD17 Determination | L4: GD17 Determination | M4: GD17 Determination | N4: GD17 Determination | O4: GD17 Determination | P4: GD17 Determination | Q4: GD17 Determination | R4: GD17 Determination | S4: GD17 Determination | T4: GD17 Determination | U4: GD17 Determination | V4: GD17 Determination | W4: GD17 Determination | X4: GD17 Determination | Y4: GD17 Determination | Z4: GD17 Determination | AA4: GD17 Determination | AB4: GD17 Determination | AC4: GD17 Determination | AD4: GD17 Determination | AE4: GD17 Determination | AF4: GD17 Determination | AG4: GD17 Determination | AH4: GD17 Determination | AI4: GD17 Determination | AJ4: GD17 Determination | AK4: GD17 Determination | AL4: GD17 Determination | AM4: GD17 Determination
E6: 2012 | F6: =E6+1 -> 2013 | G6: =F6+1 -> 2014 | H6: 2015 | I6: 2016 | J6: 2017 | K6: 2018 | L6: 2019 | M6: 2020 | N6: 2021 | O6: 2022 | P6: 2023 | Q6: 2024 | R6: 2025 | S6: 2026 | T6: 2027 | U6: 2028 | V6: 2029 | W6: 2030 | X6: 2031 | Y6: 2032 | Z6: 2033 | AA6: 2034 | AB6: 2035 | AC6: 2036 | AD6: 2037 | AE6: 2038 | AF6: 2039 | AG6: 2040 | AH6: 2041 | AI6: 2042 | AJ6: 2043 | AK6: 2044 | AL6: 2045 | AM6: 2046
A8: Capex - PNGL - GD17 Submission - Sep £2014 | B8: ** EAST DOWN EXCLUDED **
D9: Category
A10: Bulk transmission & IP/MP | B10: >7 & 7 bar mains | D10: Mains | E10: 15249.66778 | F10: 5882.014714 | G10: 0 | H10: 0 | I10: 0 | J10: 0 | K10: 0 | L10: 0 | M10: 1411722.316 | N10: 0 | O10: 0 | P10: 0 | Q10: 0 | R10: 3054407.335 | S10: 1213897.996 | T10: 0 | U10: 0 | V10: 0 | W10: 0 | X10: 0 | Y10: 0 | Z10: 0 | AA10: 0 | AB10: 0 | AC10: 0 | AD10: 0 | AE10: 0 | AF10: 0 | AG10: 0 | AH10: 0 | AI10: 0 | AJ10: 0 | AK10: 0 | AL10: 0 | AM10: 0
A11: Bulk transmission & IP/MP | B11: 4 bar mains | D11: Mains | E11: 324926.8498 | F11: 392759.8654 | G11: 0 | H11: 0 | I11: 0
A12: Bulk transmission & IP/MP | B12: presure reduction | D12: Mains | E12: 0 | F12: 0 | G12: 156833.6104 | H12: 155223.3998 | I12: 0 | J12: 0 | K12: 101342.6699 | L12: 223928.6782 | M12: 114898.0516 | N12: 95734.5289 | O12: 195715.9543 | P12: 0 | Q12: 0 | R12: 0 | S12: 0 | T12: 0 | U12: 0 | V12: 0 | W12: 0 | X12: 0 | Y12: 0 | Z12: 0 | AA12: 0 | AB12: 0 | AC12: 0 | AD12: 0 | AE12: 0 | AF12: 0 | AG12: 0 | AH12: 0 | AI12: 0 | AJ12: 0 | AK12: 0 | AL12: 0 | AM12: 0
A13: LP | B13: feeder mains | D13: Mains | E13: 86593.4742 | F13: 77946.75347 | G13: 0 | H13: 0 | I13: 0
A14: LP | B14: infill mains | D14: Mains | E14: 1594618.896 | F14: 1790746.436 | G14: 2677085.587 | H14: 2686660.117 | I14: 2392344.355 | J14: 2864139.101 | K14: 2884395.622 | L14: 2845027.688 | M14: 2649384.141 | N14: 2869730.302 | O14: 2147242.887 | P14: 2157389.985 | Q14: 2145698.5 | R14: 1764239.705 | S14: 1912235.612 | T14: 2142783.238 | U14: 2140671.252 | V14: 2138626.521 | W14: 2136646.204 | X14: 2138361.335 | Y14: 2136415.68 | Z14: 2134533.446 | AA14: 2132712.144 | AB14: 2130950.863 | AC14: 2045527.213 | AD14: 2044300.793 | AE14: 2043140.757 | AF14: 2042079.047 | AG14: 2041057.473 | AH14: 2043657.536 | AI14: 2042630.018 | AJ14: 2041645.372 | AK14: 2041645.372 | AL14: 2041645.372 | AM14: 2041645.372
A15: domestic | B15: services | D15: Services | E15: 5214018.097 | F15: 5927058.985 | G15: 6861021.573 | H15: 5975399.572 | I15: 5426732.185 | J15: 4769236.988 | K15: 4770723.728 | L15: 4842437.123 | M15: 4837241.857 | N15: 4838480.947 | O15: 4615369.629 | P15: 4241043.018 | Q15: 4139915.288 | R15: 4140455.451 | S15: 4178613.004 | T15: 4206655.833 | U15: 4286839.388 | V15: 4267477.953 | W15: 4286529.017 | X15: 4268583.694 | Y15: 4239550.601 | Z15: 4207731.612 | AA15: 4217073.559 | AB15: 4249056.243 | AC15: 1935340.659 | AD15: 1965008.12 | AE15: 1963889.955 | AF15: 1957637.44 | AG15: 1956638.15 | AH15: 1959256.832 | AI15: 1958275.942 | AJ15: 1986561.813 | AK15: 1986561.813 | AL15: 1986561.813 | AM15: 1986561.813
A16: domestic | B16: meters | D16: Meters | E16: 2137406.991 | F16: 2345905.626 | G16: 2392522.926 | H16: 2158166.897 | I16: 2022785.969 | J16: 3523593.921 | K16: 3496448.82 | L16: 3512434.027 | M16: 3520726.962 | N16: 3521246.594 | O16: 5655946.124 | P16: 5499566.22 | Q16: 5166372.911 | R16: 5138616.928 | S16: 4453578.869 | T16: 4612242.724 | U16: 3873750.04 | V16: 3955727.388 | W16: 3941206.565 | X16: 4403003.428 | Y16: 4614619.044 | Z16: 5011786.844 | AA16: 4768690.169 | AB16: 4526651.695 | AC16: 3664995.455 | AD16: 3285619.316 | AE16: 3284325.982 | AF16: 3336378.733 | AG16: 3335627.731 | AH16: 3340819.981 | AI16: 3339801.803 | AJ16: 3135993.115 | AK16: 3135993.115 | AL16: 3135993.115 | AM16: 3135993.115
A17: Industrial/ commercial | B17: services | D17: Services | E17: 416258.1818 | F17: 341696.8384 | G17: 279987.3574 | H17: 285854.7535 | I17: 283853.7702 | J17: 406279.6454 | K17: 406389.7959 | L17: 403663.4516 | M17: 403213.7869 | N17: 403305.3174 | O17: 384692.9966 | P17: 172744.6155 | Q17: 174246.7964 | R17: 174265.859 | S17: 175859.8665 | T17: 177034.9081 | U17: 180404.2065 | V17: 179584.2909 | W17: 180380.8893 | X17: 179620.6804 | Y17: 178393.9893 | Z17: 177050.1738 | AA17: 177438.3562 | AB17: 178779.1535 | AC17: 191724.9758 | AD17: 194651.5255 | AE17: 194528.3637 | AF17: 193896.7337 | AG17: 193785.5142 | AH17: 194032.658 | AI17: 193923.3585 | AJ17: 196712.1503 | AK17: 196712.1503 | AL17: 196712.1503 | AM17: 196712.1503
A18: Industrial/ commercial | B18: meters | D18: Meters | E18: 221313.4218 | F18: 104958.5883 | G18: 267127.3629 | H18: 269564.6687 | I18: 267677.716 | J18: 1662527.446 | K18: 1662978.191 | L18: 1651821.781 | M18: 1649981.719 | N18: 1650356.268 | O18: 2407794.526 | P18: 1511061.635 | Q18: 1243046.325 | R18: 1223852.769 | S18: 1441337.923 | T18: 903422.1886 | U18: 755150.3411 | V18: 834699.8248 | W18: 631322.0929 | X18: 374324.3269 | Y18: 435133.1547 | Z18: 362314.0727 | AA18: 470262.2115 | AB18: 338835.997 | AC18: 363371.9146 | AD18: 421527.5958 | AE18: 421260.8828 | AF18: 419893.0565 | AG18: 419652.2052 | AH18: 420187.4073 | AI18: 419950.7137 | AJ18: 343214.6816 | AK18: 343214.6816 | AL18: 343214.6816 | AM18: 343214.6816
A19: Other capex | D19: Other | E19: 201032.4324 | F19: 28287.93648 | G19: 100704.7338 | H19: 100100.5054 | I19: 99399.8019 | J19: 818661.2061 | K19: 818661.2061 | L19: 828661.2061 | M19: 238661.2061 | N19: 238661.2061 | O19: 238661.2061 | P19: 238661.2061 | Q19: 238661.2061 | R19: 238661.2061 | S19: 238661.2061 | T19: 238661.2061 | U19: 238661.2061 | V19: 238661.2061 | W19: 238661.2061 | X19: 238661.2061 | Y19: 238661.2061 | Z19: 238661.2061 | AA19: 238661.2061 | AB19: 238661.2061 | AC19: 238661.2061 | AD19: 238661.2061 | AE19: 238661.2061 | AF19: 238661.2061 | AG19: 238661.2061 | AH19: 238661.2061 | AI19: 238661.2061 | AJ19: 238661.2061 | AK19: 238661.2061 | AL19: 238661.2061 | AM19: 238661.2061
A20: Engineering Other (Mgt Fee) | D20: Other | E20: 2882092.356 | F20: 2742733.364 | G20: 0 | H20: 0 | I20: 0
A21: TMA | D21: Other | G21: 0 | H21: 0 | I21: 923616.5188 | J21: 803965.5734 | K21: 806150.9145 | L21: 809112.8263 | M21: 930156.21 | N21: 811151.6566 | O21: 714730.5512 | P21: 657117.7618 | Q21: 645986.0585 | R21: 913336.8349 | S21: 748060.6479 | T21: 652647.3979 | U21: 660791.4847 | V21: 658568.8765 | W21: 660355.611 | X21: 658656.571 | Y21: 655436.027 | Z21: 651931.5232 | AA21: 652722.4059 | AB21: 655878.626 | AC21: 417259.2848 | AD21: 420396.0439 | AE21: 420155.9075 | AF21: 419361.3221 | AG21: 419148.1137 | AH21: 419694.7026 | AI21: 419482.9318 | AJ21: 422491.9335 | AK21: 422491.9335 | AL21: 422491.9335 | AM21: 422491.9335
A23: Capex - PNGL - GD17 East Down Submission - Sep £2014 | B23: ** EAST DOWN ONLY **
D24: Category
A25: Bulk transmission & IP/MP | B25: >7 & 7 bar mains | D25: Mains
A26: Bulk transmission & IP/MP | B26: 4 bar mains | D26: Mains
A27: Bulk transmission & IP/MP | B27: presure reduction | D27: Mains
A28: LP | B28: feeder mains | D28: Mains
A29: LP | B29: infill mains | D29: Mains | I29: 1830743.563 | J29: 3866053.537 | K29: 3866053.537 | L29: 2408724.215 | M29: 2408724.215 | N29: 2408724.215 | O29: 2408724.215 | P29: 37373.95524 | Q29: 37373.95524 | R29: 37373.95524 | S29: 37373.95524 | T29: 37373.95524 | U29: 37373.95524 | V29: 37373.95524 | W29: 37373.95524 | X29: 37373.95524 | Y29: 37373.95524 | Z29: 37373.95524 | AA29: 37373.95524 | AB29: 37373.95524 | AC29: 37373.95524 | AD29: 37373.95524 | AE29: 37373.95524 | AF29: 37373.95524 | AG29: 37373.95524 | AH29: 37373.95524 | AI29: 37373.95524 | AJ29: 37373.95524 | AK29: 37373.95524 | AL29: 37373.95524 | AM29: 37373.95524
A30: domestic | B30: services | D30: Services | I30: 0 | J30: 206597.7303 | K30: 258604.0977 | L30: 295778.57 | M30: 508087.0299 | N30: 518220.7315 | O30: 526892.7404 | P30: 454561.5841 | Q30: 287891.0257 | R30: 355029.1885 | S30: 315018.7401 | T30: 315018.7401 | U30: 315018.7401 | V30: 315018.7401 | W30: 315018.7401 | X30: 315018.7401 | Y30: 315018.7401 | Z30: 315018.7401 | AA30: 315018.7401 | AB30: 315018.7401 | AC30: 315018.7401 | AD30: 271232.3604 | AE30: 271232.3604 | AF30: 271232.3604 | AG30: 271232.3604 | AH30: 271232.3604 | AI30: 271232.3604 | AJ30: 271232.3604 | AK30: 271232.3604 | AL30: 271232.3604 | AM30: 271232.3604
A31: domestic | B31: meters | D31: Meters | I31: 0 | J31: 82461.74957 | K31: 98973.28632 | L31: 112291.1877 | M31: 184329.6738 | N31: 184598.3706 | O31: 189933.0086 | P31: 165080.2333 | Q31: 106734.1237 | R31: 128842.6756 | S31: 116826.5518 | T31: 116826.5518 | U31: 116826.5518 | V31: 116826.5518 | W31: 116826.5518 | X31: 116826.5518 | Y31: 116826.5518 | Z31: 116826.5518 | AA31: 116826.5518 | AB31: 116826.5518 | AC31: 116826.5518 | AD31: 98586.66201 | AE31: 181048.4116 | AF31: 197559.9483 | AG31: 210877.8497 | AH31: 282916.3358 | AI31: 283185.0327 | AJ31: 288519.6706 | AK31: 263666.8953 | AL31: 205320.7857 | AM31: 227429.3376
A32: Industrial/ commercial | B32: services | D32: Services
A33: Industrial/ commercial | B33: meters | D33: Meters
A34: Other capex | D34: Other
A35: Engineering Other (Mgt Fee) | D35: Other
A36: TMA | D36: Other
A38: Capex - PNGL - GD17 OVERALL - Sep £2014 | B38: ** OVERALL TOTAL SUB INCL EAST DOWN **
D39: Category
A40: Bulk transmission & IP/MP | B40: >7 & 7 bar mains | D40: Mains | E40: =SUM(E10,E25) -> 15249.66778 | F40: =SUM(F10,F25) -> 5882.014714 | G40: =SUM(G10,G25) -> 0 | H40: =SUM(H10,H25) -> 0 | I40: =SUM(I10,I25) -> 0 | J40: =SUM(J10,J25) -> 0 | K40: 0 | L40: 0 | M40: 1411722.316 | N40: 0 | O40: 0 | P40: 0 | Q40: 0 | R40: 3054407.335 | S40: 1213897.996 | T40: 0 | U40: 0 | V40: 0 | W40: 0 | X40: 0 | Y40: 0 | Z40: 0 | AA40: 0 | AB40: 0 | AC40: 0 | AD40: 0 | AE40: 0 | AF40: 0 | AG40: 0 | AH40: 0 | AI40: 0 | AJ40: 0 | AK40: 0 | AL40: 0 | AM40: 0
A41: Bulk transmission & IP/MP | B41: 4 bar mains | D41: Mains | E41: =SUM(E11,E26) -> 324926.8498 | F41: 392759.8654 | G41: 0 | H41: 0 | I41: =SUM(I11,I26) -> 0 | J41: =SUM(J11,J26) -> 0 | K41: 0 | L41: 0 | M41: 0 | N41: 0 | O41: 0 | P41: 0 | Q41: 0 | R41: 0 | S41: 0 | T41: 0 | U41: 0 | V41: 0 | W41: 0 | X41: 0 | Y41: 0 | Z41: 0 | AA41: 0 | AB41: 0 | AC41: 0 | AD41: 0 | AE41: 0 | AF41: 0 | AG41: 0 | AH41: 0 | AI41: 0 | AJ41: 0 | AK41: 0 | AL41: 0 | AM41: 0
A42: Bulk transmission & IP/MP | B42: presure reduction | D42: Mains | E42: 0 | F42: 0 | G42: 156833.6104 | H42: 155223.3998 | I42: 0 | J42: =SUM(J12,J27) -> 0 | K42: 101342.6699 | L42: 223928.6782 | M42: 114898.0516 | N42: 95734.5289 | O42: 195715.9543 | P42: 0 | Q42: 0 | R42: 0 | S42: 0 | T42: 0 | U42: 0 | V42: 0 | W42: 0 | X42: 0 | Y42: 0 | Z42: 0 | AA42: 0 | AB42: 0 | AC42: 0 | AD42: 0 | AE42: 0 | AF42: 0 | AG42: 0 | AH42: 0 | AI42: 0 | AJ42: 0 | AK42: 0 | AL42: 0 | AM42: 0
A43: LP | B43: feeder mains | D43: Mains | E43: 86593.4742 | F43: 77946.75347 | G43: 0 | H43: 0 | I43: 0 | J43: =SUM(J13,J28) -> 0 | K43: 0 | L43: 0 | M43: 0 | N43: 0 | O43: 0 | P43: 0 | Q43: 0 | R43: 0 | S43: 0 | T43: 0 | U43: 0 | V43: 0 | W43: 0 | X43: 0 | Y43: 0 | Z43: 0 | AA43: 0 | AB43: 0 | AC43: 0 | AD43: 0 | AE43: 0 | AF43: 0 | AG43: 0 | AH43: 0 | AI43: 0 | AJ43: 0 | AK43: 0 | AL43: 0 | AM43: 0
A44: LP | B44: infill mains | D44: Mains | E44: 1594618.896 | F44: 1790746.436 | G44: 2677085.587 | H44: 2686660.117 | I44: 4223087.919 | J44: =SUM(J14,J29) -> 6730192.638 | K44: 6750449.159 | L44: 5253751.903 | M44: 5058108.356 | N44: 5278454.517 | O44: 4555967.102 | P44: 2194763.94 | Q44: 2183072.456 | R44: 1801613.66 | S44: 1949609.567 | T44: 2180157.193 | U44: 2178045.207 | V44: 2176000.476 | W44: 2174020.159 | X44: 2175735.29 | Y44: 2173789.635 | Z44: 2171907.401 | AA44: 2170086.099 | AB44: 2168324.818 | AC44: 2082901.168 | AD44: 2081674.748 | AE44: 2080514.712 | AF44: 2079453.002 | AG44: 2078431.428 | AH44: 2081031.491 | AI44: 2080003.974 | AJ44: 2079019.327 | AK44: 2079019.327 | AL44: 2079019.327 | AM44: 2079019.327
A45: domestic | B45: services | D45: Services | E45: 5214018.097 | F45: 5927058.985 | G45: 6861021.573 | H45: 5975399.572 | I45: 5426732.185 | J45: =SUM(J15,J30) -> 4975834.718 | K45: 5029327.825 | L45: 5138215.693 | M45: 5345328.887 | N45: 5356701.678 | O45: 5142262.369 | P45: 4695604.602 | Q45: 4427806.314 | R45: 4495484.639 | S45: 4493631.744 | T45: 4521674.573 | U45: 4601858.128 | V45: 4582496.693 | W45: 4601547.757 | X45: 4583602.434 | Y45: 4554569.341 | Z45: 4522750.352 | AA45: 4532092.299 | AB45: 4564074.983 | AC45: 2250359.399 | AD45: 2236240.48 | AE45: 2235122.315 | AF45: 2228869.8 | AG45: 2227870.51 | AH45: 2230489.192 | AI45: 2229508.302 | AJ45: 2257794.174 | AK45: 2257794.174 | AL45: 2257794.174 | AM45: 2257794.174
A46: domestic | B46: meters | D46: Meters | E46: 2137406.991 | F46: 2345905.626 | G46: 2392522.926 | H46: 2158166.897 | I46: 2022785.969 | J46: =SUM(J16,J31) -> 3606055.671 | K46: 3595422.106 | L46: 3624725.215 | M46: 3705056.636 | N46: 3705844.965 | O46: 5845879.133 | P46: 5664646.453 | Q46: 5273107.034 | R46: 5267459.604 | S46: 4570405.421 | T46: 4729069.276 | U46: 3990576.592 | V46: 4072553.94 | W46: 4058033.117 | X46: 4519829.98 | Y46: 4731445.596 | Z46: 5128613.396 | AA46: 4885516.721 | AB46: 4643478.247 | AC46: 3781822.006 | AD46: 3384205.978 | AE46: 3465374.394 | AF46: 3533938.682 | AG46: 3546505.581 | AH46: 3623736.317 | AI46: 3622986.836 | AJ46: 3424512.786 | AK46: 3399660.01 | AL46: 3341313.901 | AM46: 3363422.453
A47: Industrial/ commercial | B47: services | D47: Services | E47: 416258.1818 | F47: 341696.8384 | G47: 279987.3574 | H47: 285854.7535 | I47: 283853.7702 | J47: =SUM(J17,J32) -> 406279.6454 | K47: 406389.7959 | L47: 403663.4516 | M47: 403213.7869 | N47: 403305.3174 | O47: 384692.9966 | P47: 172744.6155 | Q47: 174246.7964 | R47: 174265.859 | S47: 175859.8665 | T47: 177034.9081 | U47: 180404.2065 | V47: 179584.2909 | W47: 180380.8893 | X47: 179620.6804 | Y47: 178393.9893 | Z47: 177050.1738 | AA47: 177438.3562 | AB47: 178779.1535 | AC47: 191724.9758 | AD47: 194651.5255 | AE47: 194528.3637 | AF47: 193896.7337 | AG47: 193785.5142 | AH47: 194032.658 | AI47: 193923.3585 | AJ47: 196712.1503 | AK47: 196712.1503 | AL47: 196712.1503 | AM47: 196712.1503
A48: Industrial/ commercial | B48: meters | D48: Meters | E48: 221313.4218 | F48: 104958.5883 | G48: 267127.3629 | H48: 269564.6687 | I48: 267677.716 | J48: =SUM(J18,J33) -> 1662527.446 | K48: 1662978.191 | L48: 1651821.781 | M48: 1649981.719 | N48: 1650356.268 | O48: 2407794.526 | P48: 1511061.635 | Q48: 1243046.325 | R48: 1223852.769 | S48: 1441337.923 | T48: 903422.1886 | U48: 755150.3411 | V48: 834699.8248 | W48: 631322.0929 | X48: 374324.3269 | Y48: 435133.1547 | Z48: 362314.0727 | AA48: 470262.2115 | AB48: 338835.997 | AC48: 363371.9146 | AD48: 421527.5958 | AE48: 421260.8828 | AF48: 419893.0565 | AG48: 419652.2052 | AH48: 420187.4073 | AI48: 419950.7137 | AJ48: 343214.6816 | AK48: 343214.6816 | AL48: 343214.6816 | AM48: 343214.6816
A49: Other capex | D49: Other | E49: 201032.4324 | F49: 28287.93648 | G49: 100704.7338 | H49: 100100.5054 | I49: 99399.8019 | J49: =SUM(J19,J34) -> 818661.2061 | K49: 818661.2061 | L49: 828661.2061 | M49: 238661.2061 | N49: 238661.2061 | O49: 238661.2061 | P49: 238661.2061 | Q49: 238661.2061 | R49: 238661.2061 | S49: 238661.2061 | T49: 238661.2061 | U49: 238661.2061 | V49: 238661.2061 | W49: 238661.2061 | X49: 238661.2061 | Y49: 238661.2061 | Z49: 238661.2061 | AA49: 238661.2061 | AB49: 238661.2061 | AC49: 238661.2061 | AD49: 238661.2061 | AE49: 238661.2061 | AF49: 238661.2061 | AG49: 238661.2061 | AH49: 238661.2061 | AI49: 238661.2061 | AJ49: 238661.2061 | AK49: 238661.2061 | AL49: 238661.2061 | AM49: 238661.2061
A50: Engineering Other (Mgt Fee) | D50: Other | E50: 2882092.356 | F50: 2742733.364 | G50: 0 | H50: 0 | I50: 0 | J50: =SUM(J20,J35) -> 0 | K50: 0 | L50: 0 | M50: 0 | N50: 0 | O50: 0 | P50: 0 | Q50: 0 | R50: 0 | S50: 0 | T50: 0 | U50: 0 | V50: 0 | W50: 0 | X50: 0 | Y50: 0 | Z50: 0 | AA50: 0 | AB50: 0 | AC50: 0 | AD50: 0 | AE50: 0 | AF50: 0 | AG50: 0 | AH50: 0 | AI50: 0 | AJ50: 0 | AK50: 0 | AL50: 0 | AM50: 0
A51: TMA | D51: Other | E51: 0 | F51: 0 | G51: 0 | H51: 0 | I51: 923616.5188 | J51: =SUM(J21,J36) -> 803965.5734 | K51: 806150.9145 | L51: 809112.8263 | M51: 930156.21 | N51: 811151.6566 | O51: 714730.5512 | P51: 657117.7618 | Q51: 645986.0585 | R51: 913336.8349 | S51: 748060.6479 | T51: 652647.3979 | U51: 660791.4847 | V51: 658568.8765 | W51: 660355.611 | X51: 658656.571 | Y51: 655436.027 | Z51: 651931.5232 | AA51: 652722.4059 | AB51: 655878.626 | AC51: 417259.2848 | AD51: 420396.0439 | AE51: 420155.9075 | AF51: 419361.3221 | AG51: 419148.1137 | AH51: 419694.7026 | AI51: 419482.9318 | AJ51: 422491.9335 | AK51: 422491.9335 | AL51: 422491.9335 | AM51: 422491.9335
A53: Capex - UR Draft Det - Sep £2014
D54: Category | E54: Equates to Actuals Above | G54: Equates to Actual/Forecast Above | J54: Linked to Capex Spreadsheet Capex DD 04.00 Final Issued to AC Post RPE 04-03-16 - Con to Sep £2014 | P54: Linked to Capex Spreadsheet Capex DD 04.00 Final Issued to AC Post RPE 04-03-16 - Con to Sep £2014
A55: Bulk transmission & IP/MP | B55: >7 & 7 bar mains | D55: Mains | E55: =E10 -> 15249.66778 | F55: =F10 -> 5882.014714 | G55: =G10 -> 0 | H55: =H10 -> 0 | I55: =I10 -> 0 | J55: 0 | K55: 0 | L55: 0 | M55: 1083701.103 | N55: 0 | O55: 0 | P55: 0 | Q55: 0 | R55: 2344699.493 | S55: 931842.3197 | T55: 0 | U55: 0 | V55: 0 | W55: 0 | X55: 0 | Y55: 0 | Z55: 0 | AA55: 0 | AB55: 0 | AC55: 0 | AD55: 0 | AE55: 0 | AF55: 0 | AG55: 0 | AH55: 0 | AI55: 0 | AJ55: 0 | AK55: 0 | AL55: 0 | AM55: =AL55 -> 0 | AN55: NOTE: 2046 = 2045 totals
A56: Bulk transmission & IP/MP | B56: 4 bar mains | D56: Mains | E56: =E11 -> 324926.8498 | F56: 392759.8654 | G56: 0 | H56: 0 | I56: 0
A57: Bulk transmission & IP/MP | B57: presure reduction | D57: Mains | E57: 0 | F57: 0 | G57: 156833.6104 | H57: 155223.3998 | I57: 0 | J57: 0 | K57: 98947.74342 | L57: 216882.4973 | M57: 110610.7147 | N57: 91605.78164 | O57: 60996.54158 | P57: 108220.7797 | Q57: 108220.7797 | R57: 108220.7797 | S57: 108220.7797 | T57: 108220.7797 | U57: 108220.7797 | V57: 108220.7797 | W57: 108220.7797 | X57: 108220.7797 | Y57: 108220.7797 | Z57: 108220.7797 | AA57: 108220.7797 | AB57: 108220.7797 | AC57: 108220.7797 | AD57: 108220.7797 | AE57: 101382.0263 | AF57: 224015.6408 | AG57: 114942.6722 | AH57: 95771.70736 | AI57: 195791.9605 | AJ57: 108220.7797 | AK57: 108220.7797 | AL57: 108220.7797 | AM57: =AL57 -> 108220.7797
A58: LP | B58: feeder mains | D58: Mains | E58: 86593.4742 | F58: 77946.75347 | G58: 0 | H58: 0 | I58: 0
A59: LP | B59: infill mains - EAST DOWN INFILL INCLUDED 2017 ONWARD | D59: Mains | E59: 1594618.896 | F59: 1790746.436 | G59: 2677085.587 | H59: 2686660.117 | I59: 4238399.428 | J59: 4768549.951 | K59: 4713181.958 | L59: 3255429.907 | M59: 3228023.203 | N59: 3208532.136 | O59: 3189158.758 | P59: 957594.395 | Q59: 957594.395 | R59: 957594.395 | S59: 957594.395 | T59: 957594.395 | U59: 957594.395 | V59: 957594.395 | W59: 957594.395 | X59: 957594.395 | Y59: 957594.395 | Z59: 957594.395 | AA59: 957594.395 | AB59: 957594.395 | AC59: 957594.395 | AD59: 957594.395 | AE59: 957594.395 | AF59: 957594.395 | AG59: 957594.395 | AH59: 957594.395 | AI59: 957594.395 | AJ59: 957594.395 | AK59: 957594.395 | AL59: 957594.395 | AM59: 957594.395
A60: domestic | B60: services - EAST DOWN DOM SERVICES INCLUDED 2017 ONWARD | D60: Services | E60: 5214018.097 | F60: 5927058.985 | G60: 6861021.573 | H60: 5975399.572 | I60: 5426732.185 | J60: 5649567.978 | K60: 5541292.804 | L60: 5348476.45 | M60: 5256631.507 | N60: 5150198.34 | O60: 4906180.012 | P60: 3924276.613 | Q60: 3574345.027 | R60: 3462366.919 | S60: 3278929.098 | T60: 3138956.464 | U60: 3006350.81 | V60: 2785341.387 | W60: 2564331.964 | X60: 2343322.541 | Y60: 2122313.119 | Z60: 1901303.696 | AA60: 1680294.273 | AB60: 1643459.369 | AC60: 1606624.465 | AD60: 1569789.561 | AE60: 1532954.658 | AF60: 1496119.754 | AG60: 1459284.85 | AH60: 1422449.946 | AI60: 1385615.042 | AJ60: 1348780.139 | AK60: 1311945.235 | AL60: 1275110.331 | AM60: 1275110.331
A61: domestic | B61: meters - EAST DOWN DOM METERS INCLUDED 2017 ONWARD | D61: Meters | E61: 2137406.991 | F61: 2345905.626 | G61: 2392522.926 | H61: 2158166.897 | I61: 2022785.969 | J61: 2391879.521 | K61: 2773482.227 | L61: 2937508.783 | M61: 3443628.817 | N61: 3650418.976 | O61: 4277219 | P61: 3984483.978 | Q61: 3465302.359 | R61: 3519195.981 | S61: 2903796.602 | T61: 3092204.486 | U61: 2423103.277 | V61: 2416774.133 | W61: 2352523.729 | X61: 2614511.942 | Y61: 2722490.978 | Z61: 2962039.497 | AA61: 2539329.38 | AB61: 2577687.83 | AC61: 2606456.667 | AD61: 3112042.303 | AE61: 3670867.357 | AF61: 3935563.263 | AG61: 4668662.758 | AH61: 4987170.654 | AI61: 5338441.347 | AJ61: 4557942.803 | AK61: 4029171.572 | AL61: 4073475.582 | AM61: 4073475.582
A62: Industrial/ commercial | B62: services - EAST DOWN IC SERVICES INCLUDED 2017 ONWARD | D62: Services | E62: 416258.1818 | F62: 341696.8384 | G62: 279987.3574 | H62: 285854.7535 | I62: 283853.7702 | J62: 593629.135 | K62: 581713.7291 | L62: 600496.4308 | M62: 657368.4806 | N62: 599379.6043 | O62: 640875.6882 | P62: 375390.5559 | Q62: 276514.0296 | R62: 284084.6221 | S62: 307025.8115 | T62: 307025.8115 | U62: 307025.8115 | V62: 307025.8115 | W62: 307025.8115 | X62: 307025.8115 | Y62: 307025.8115 | Z62: 307025.8115 | AA62: 307025.8115 | AB62: 307025.8115 | AC62: 307025.8115 | AD62: 213425.7587 | AE62: 213425.7587 | AF62: 213425.7587 | AG62: 213425.7587 | AH62: 213425.7587 | AI62: 213425.7587 | AJ62: 213425.7587 | AK62: 213425.7587 | AL62: 213425.7587 | AM62: 213425.7587
A63: Industrial/ commercial | B63: meters - EAST DOWN IC METERS INCLUDED 2017 ONWARD | D63: Meters | E63: 221313.4218 | F63: 104958.5883 | G63: 267127.3629 | H63: 269564.6687 | I63: 267677.716 | J63: 772318.6189 | K63: 783804.6047 | L63: 792998.5181 | M63: 833699.4394 | N63: 823904.612 | O63: 833352.7972 | P63: 1514787.425 | Q63: 1183859.657 | R63: 1043618.931 | S63: 838496.4236 | T63: 242481.1731 | U63: 668957.2632 | V63: 666292.839 | W63: 547473.4315 | X63: 559286.0461 | Y63: 510017.9173 | Z63: 467988.3079 | AA63: 1620037.031 | AB63: 1800856.45 | AC63: 1440274.005 | AD63: 302106.503 | AE63: 332492.9755 | AF63: 350233.0793 | AG63: 405095.2466 | AH63: 410537.9003 | AI63: 421369.4398 | AJ63: 1661375.091 | AK63: 1330447.324 | AL63: 1190206.597 | AM63: 1190206.597
A64: Other capex | B64: New 5 Yr Category | D64: Other | E64: 201032.4324 | F64: 28287.93648 | G64: 100704.7338 | H64: 100100.5054 | I64: 99399.8019 | J64: 235466.188 | K64: 233021.1728 | L64: 231151.4488 | M64: 229755.7376 | N64: 228368.4537 | O64: 226989.5464 | P64: 238753.6839 | Q64: 238753.6839 | R64: 238753.6839 | S64: 238753.6839 | T64: 238753.6839 | U64: 238753.6839 | V64: 238753.6839 | W64: 238753.6839 | X64: 238753.6839 | Y64: 238753.6839 | Z64: 238753.6839 | AA64: 238753.6839 | AB64: 238753.6839 | AC64: 238753.6839 | AD64: 238753.6839 | AE64: 238753.6839 | AF64: 238753.6839 | AG64: 238753.6839 | AH64: 238753.6839 | AI64: 238753.6839 | AJ64: 238753.6839 | AK64: 238753.6839 | AL64: 238753.6839 | AM64: 238753.6839
A65: Engineering Other (Mgt Fee) | D65: Other | E65: 2882092.356 | F65: 2742733.364 | G65: 0 | H65: 0 | I65: 0
A66: TMA | B66: TMA - EAST DOWN TMA INCLUDED 2017 ONWARD | D66: Other | E66: 0 | F66: 0 | G66: 0 | H66: 0 | I66: 1108222.026 | J66: 1101174.706 | K66: 1083618.849 | L66: 920440.2788 | M66: 1022572.429 | N66: 895811.0081 | O66: 873621.4459 | P66: 525726.1564 | Q66: 480845.3451 | R66: 704874.543 | S66: 547539.1624 | T66: 440357.667 | U66: 427097.1016 | V66: 404996.1594 | W66: 382895.2171 | X66: 360794.2748 | Y66: 338693.3325 | Z66: 316592.3902 | AA66: 294491.4479 | AB66: 290807.9576 | AC66: 287124.4672 | AD66: 274080.9715 | AE66: 270397.4811 | AF66: 266713.9908 | AG66: 263030.5004 | AH66: 259347.01 | AI66: 255663.5196 | AJ66: 251980.0292 | AK66: 248296.5389 | AL66: 244613.0485 | AM66: 244613.0485
A67: PDP REMOVAL OVER BULK MAINS | B67: INFILL REMOVED AS PART OF PDP (enter as -ve) | D67: Mains | I67: -1749175.824 | J67: -3701513.824 | K67: -1986047.024
A69: Capex - UR Final Det - Sep £2014
D70: Category | E70: Equates to Actuals Above | G70: Equates to Actual/Forecast Above
A71: Bulk transmission & IP/MP | B71: >7 & 7 bar mains | D71: Mains | E71: =E10 -> 15249.66778 | F71: 5882.014714 | G71: 0 | H71: 0 | I71: 0 | J71: 0 | K71: 0 | L71: 0 | M71: 1092524.708 | N71: 0 | O71: 0 | P71: 0 | Q71: 0 | R71: 3055593.513 | S71: 1214369.413 | T71: 0 | U71: 0 | V71: 0 | W71: 0 | X71: 0 | Y71: 0 | Z71: 0 | AA71: 0 | AB71: 0 | AC71: 0 | AD71: 0 | AE71: 0 | AF71: 0 | AG71: 0 | AH71: 0 | AI71: 0 | AJ71: 0 | AK71: 0 | AL71: 0 | AM71: =AL71 -> 0 | AN71: NOTE: 2046 = 2045 totals
A72: Bulk transmission & IP/MP | B72: 4 bar mains | D72: Mains | E72: 324926.8498 | F72: 392759.8654 | G72: 0 | H72: 0 | I72: 0
A73: Bulk transmission & IP/MP | B73: presure reduction | D73: Mains | E73: 0 | F73: 0 | G73: 156833.6104 | H73: 155223.3998 | I73: 0 | J73: 0 | K73: 99841.29529 | L73: 218757.8912 | M73: 111511.3185 | N73: 92305.41228 | O73: 61431.62774 | P73: 117658.6384 | Q73: 117658.6384 | R73: 117658.6384 | S73: 117658.6384 | T73: 117658.6384 | U73: 117658.6384 | V73: 117658.6384 | W73: 117658.6384 | X73: 117658.6384 | Y73: 117658.6384 | Z73: 117658.6384 | AA73: 117658.6384 | AB73: 117658.6384 | AC73: 117658.6384 | AD73: 117658.6384 | AE73: 110819.8849 | AF73: 233453.4995 | AG73: 124380.5309 | AH73: 105209.566 | AI73: 73595.71007 | AJ73: 127096.4971 | AK73: 127096.4971 | AL73: 127096.4971 | AM73: =AL73 -> 127096.4971
A74: LP | B74: feeder mains | D74: Mains | E74: 86593.4742 | F74: 77946.75347 | G74: 0 | H74: 0 | I74: 0
A75: LP | B75: infill mains | D75: Mains | E75: =E14 -> 1594618.896 | F75: 1790746.436 | G75: 2677085.587 | H75: 2686660.117 | I75: 2917941.173 | J75: 1774277.297 | K75: 2689954.391 | L75: 5386118.559 | M75: 5263139.136 | N75: 4833492.885 | O75: 3725061.017 | P75: 958620.8891 | Q75: 958620.8891 | R75: 958620.8891 | S75: 958620.8891 | T75: 958620.8891 | U75: 958620.8891 | V75: 958620.8891 | W75: 958620.8891 | X75: 958620.8891 | Y75: 958620.8891 | Z75: 958620.8891 | AA75: 958620.8891 | AB75: 958620.8891 | AC75: 958620.8891 | AD75: 958620.8891 | AE75: 958620.8891 | AF75: 958620.8891 | AG75: 958620.8891 | AH75: 958620.8891 | AI75: 958620.8891 | AJ75: 958620.8891 | AK75: 958620.8891 | AL75: 958620.8891 | AM75: 958620.8891
A76: domestic | B76: services | D76: Services | E76: 5214018.097 | F76: 5927058.985 | G76: 6861021.573 | H76: 5975399.572 | I76: =I15 -> 5426732.185 | J76: 5062136.146 | K76: 4966358.461 | L76: 4883003.069 | M76: 4822276.634 | N76: 4750156.648 | O76: 4668718.692 | P76: 3454822.301 | Q76: 3306081.439 | R76: 3175530.546 | S76: 3090012.305 | T76: 2912028.46 | U76: 2765653.127 | V76: 2552205.936 | W76: 2363859.397 | X76: 2173804.498 | Y76: 1984244.419 | Z76: 1798845.361 | AA76: 1613446.304 | AB76: 1593582.119 | AC76: 1573717.934 | AD76: 1553853.75 | AE76: 1527368.17 | AF76: 1507503.985 | AG76: 1481018.406 | AH76: 1461154.221 | AI76: 1434668.641 | AJ76: 1408183.062 | AK76: 1381697.482 | AL76: 1361833.297 | AM76: 1361833.297
A77: domestic | B77: meters | D77: Meters | E77: 2137406.991 | F77: 2345905.626 | G77: 2392522.926 | H77: 2158166.897 | I77: 2022785.969 | J77: 2236074.523 | K77: 2629006.971 | L77: 2827064.775 | M77: 3347399.966 | N77: 3563867.187 | O77: 4236752.749 | P77: 4415732.585 | Q77: 3948929.034 | R77: 3997987.41 | S77: 3408080.451 | T77: 3586592.481 | U77: 2913906.469 | V77: 2909546.079 | W77: 2853799.143 | X77: 3123846.068 | Y77: 3240012.638 | Z77: 3488831.973 | AA77: 3075392.671 | AB77: 3118169.284 | AC77: 3151356.285 | AD77: 2934429.614 | AE77: 3499421.766 | AF77: 3802656.968 | AG77: 4551344.845 | AH77: 4885713.756 | AI77: 5286150.945 | AJ77: 5004610.474 | AK77: 4530911.657 | AL77: 4574798.584 | AM77: 4574798.584
A78: Industrial/ commercial | B78: services | D78: Services | E78: 416258.1818 | F78: 341696.8384 | G78: 279987.3574 | H78: 285854.7535 | I78: 283853.7702 | J78: 524434.9999 | K78: 539816.7065 | L78: 600743.6941 | M78: 676330.0311 | N78: 723792.3199 | O78: 751544.4461 | P78: 456203.8294 | Q78: 406121.1598 | R78: 380354.7773 | S78: 346919.7325 | T78: 317866.5704 | U78: 299010.1384 | V78: 285595.0197 | W78: 284219.8906 | X78: 288392.4822 | Y78: 289863.9667 | Z78: 289863.9667 | AA78: 289863.9667 | AB78: 289863.9667 | AC78: 289863.9667 | AD78: 287613.6159 | AE78: 283552.8065 | AF78: 271731.8609 | AG78: 253708.0615 | AH78: 235496.4948 | AI78: 219882.2263 | AJ78: 213425.7587 | AK78: 213425.7587 | AL78: 213425.7587 | AM78: 213425.7587
A79: Industrial/ commercial | B79: meters | D79: Meters | E79: 221313.4218 | F79: 104958.5883 | G79: 267127.3629 | H79: 269564.6687 | I79: 267677.716 | J79: 1034759.725 | K79: 1248693.012 | L79: 1301224.538 | M79: 1470221.55 | N79: 1603314.958 | O79: 1602439.659 | P79: 1461331.662 | Q79: 1332625.421 | R79: 1243802.828 | S79: 1046323.018 | T79: 854289.1644 | U79: 906488.1793 | V79: 873516.7855 | W79: 847452.0935 | X79: 836220.772 | Y79: 794833.952 | Z79: 759676.2674 | AA79: 1090955.329 | AB79: 1288073.114 | AC79: 1144823.326 | AD79: 1099409.652 | AE79: 1323796.531 | AF79: 1382988.654 | AG79: 1557803.552 | AH79: 1697631.332 | AI79: 1700601.846 | AJ79: 1561960.252 | AK79: 1433254.011 | AL79: 1344431.418 | AM79: 1344431.418
A80: Other capex | D80: Other | E80: 201032.4324 | F80: 28287.93648 | G80: 100704.7338 | H80: 100100.5054 | I80: 99399.8019 | J80: 237154.1329 | K80: 235125.4806 | L80: 233150.227 | M80: 231626.4323 | N80: 230112.5965 | O80: 228608.6547 | P80: 238753.8901 | Q80: 238753.8901 | R80: 238753.8901 | S80: 238753.8901 | T80: 238753.8901 | U80: 238753.8901 | V80: 238753.8901 | W80: 238753.8901 | X80: 238753.8901 | Y80: 238753.8901 | Z80: 238753.8901 | AA80: 238753.8901 | AB80: 238753.8901 | AC80: 238753.8901 | AD80: 238753.8901 | AE80: 238753.8901 | AF80: 238753.8901 | AG80: 238753.8901 | AH80: 238753.8901 | AI80: 238753.8901 | AJ80: 238753.8901 | AK80: 238753.8901 | AL80: 238753.8901 | AM80: 238753.8901
A81: Engineering Other (Mgt Fee) | D81: Other | E81: 2882092.356 | F81: 2742733.364 | G81: 0 | H81: 0 | I81: 0
A82: TMA | D82: Other | E82: 0 | F82: 0 | G82: 0 | H82: 0 | I82: 976176.2005 | J82: 736084.8443 | K82: 819612.9558 | L82: 1086986.532 | M82: 1185427.051 | N82: 1030744.185 | O82: 914532.4155 | P82: 486964.7019 | Q82: 467082.3488 | R82: 757009.9725 | S82: 560992.2339 | T82: 418851.592 | U82: 402328.4154 | V82: 379642.1845 | W82: 360670.0177 | X82: 342081.7869 | Y82: 323272.9274 | Z82: 304733.0217 | AA82: 286193.116 | AB82: 284206.6975 | AC82: 282220.279 | AD82: 280008.8255 | AE82: 276954.1866 | AF82: 273785.6735 | AG82: 269334.7356 | AH82: 265527.1605 | AI82: 261317.1757 | AJ82: 258022.971 | AK82: 255374.413 | AL82: 253387.9945 | AM82: 253387.9945
A83: PDP REMOVAL OVER BULK MAINS | B83: INFILL REMOVED AS PART OF PDP (enter as -ve) | D83: Mains | I83: -584259.5871 | J83: -1137205.63 | K83: -2301778.877 | L83: -921698.7228
E84: =SUM(E71:E83)=SUM(E10:E21) -> TRUE | F84: =SUM(F71:F83)=SUM(F10:F21) -> TRUE | G84: =SUM(G71:G83)=SUM(G10:G21) -> TRUE | H84: =SUM(H71:H83)=SUM(H10:H21) -> TRUE | I84: TRUE | J84: TRUE | K84: TRUE | L84: TRUE | M84: TRUE | N84: TRUE | O84: TRUE | P84: TRUE | Q84: TRUE | R84: TRUE | S84: TRUE | T84: TRUE | U84: TRUE | V84: TRUE | W84: TRUE | X84: TRUE | Y84: TRUE | Z84: TRUE | AA84: TRUE | AB84: TRUE | AC84: TRUE | AD84: TRUE | AE84: TRUE | AF84: TRUE | AG84: TRUE | AH84: TRUE | AI84: TRUE | AJ84: TRUE | AK84: TRUE | AL84: TRUE | AM84: =ROUND(SUM(AM71:AM83),0)=ROUND(SUM(AL71:AL83),0) -> TRUE
A85: Capex
A86: Total Capex - UR Final Det - Sep £2014 | E86: =SUM(E71:E83) -> 13093510.37 | F86: 13757976.41 | G86: 12735283.15 | H86: 11630969.91 | I86: 11410307.23 | J86: 10467716.04 | K86: 10926630.4 | L86: 15615350.56 | M86: 18200456.83 | N86: 16827786.19 | O86: 16189089.26 | P86: 11590088.5 | Q86: 10775872.82 | R86: 13925312.46 | S86: 10981730.57 | T86: 9404661.686 | U86: 8602419.746 | V86: 8315539.422 | W86: 8025033.959 | X86: 8079379.024 | Y86: 7947261.32 | Z86: 7956984.007 | AA86: 7670884.804 | AB86: 7888928.598 | AC86: 7757015.209 | AD86: 7470348.874 | AE86: 8219288.125 | AF86: 8669495.42 | AG86: 9434964.91 | AH86: 9848107.31 | AI86: 10173591.32 | AJ86: 9770673.794 | AK86: 9139134.598 | AL86: 9072348.329 | AM86: 9072348.329
A88: Opex
A89: Total Capex - GD17 Submission - Sep £2014 | E89: 18549942.27 | F89: 15795746.92 | G89: 14550551.97 | H89: 15898581.83 | I89: 16411036.01 | J89: 16990835.4 | K89: 17413237.14 | L89: 17646480.71 | M89: 17951186.68 | N89: 18316264.8 | O89: 18616976.21 | P89: 18725572.78 | Q89: 18790861.54 | R89: 18904547.07 | S89: 19191582.08 | T89: 19448589.56 | U89: 19419434.03 | V89: 19577567.21 | W89: 19854072.54 | X89: 20116509.11 | Y89: 20269386.74 | Z89: 20442165.07 | AA89: 20584895.84 | AB89: 20686741.21 | AC89: 19652844.32 | AD89: 19683299.88 | AE89: 19701926.59 | AF89: 19785333.59 | AG89: 19825956.47 | AH89: 20090874.94 | AI89: 20268233.17 | AJ89: 20182925.66 | AK89: 20196336.1 | AL89: 20209746.55 | AM89: 20223156.99
A90: Total Capex - UR Draft Det - Sep £2014 | E90: =E89 -> 18549942.27 | F90: =F89 -> 15795746.92 | G90: =G89 -> 14550551.97 | H90: =H89 -> 15898581.83 | I90: =I89 -> 16411036.01 | J90: 13894889.72 | K90: 13786172.83 | L90: 13665909.76 | M90: 13587442.77 | N90: 13515050.36 | O90: 13551326.5 | P90: 13552403.37 | Q90: 13665026.78 | R90: 13775015.2 | S90: 13879281.26 | T90: 13975024.81 | U90: 14065603.09 | V90: 14111244.02 | W90: 14147883.37 | X90: 14175595.99 | Y90: 14194548.44 | Z90: 14204903.14 | AA90: 14211930.15 | AB90: 14290690.46 | AC90: 14368401.08 | AD90: 14444861.37 | AE90: 14520186.79 | AF90: 14594269.28 | AG90: 14667224.04 | AH90: 14738943.23 | AI90: 14809338.97 | AJ90: 14878415.28 | AK90: 14946378.58 | AL90: 15014561.88 | AM90: 15098622.31
A91: Total Capex - UR Final Det - Sep £2014 | E91: =E89 -> 18549942.27 | F91: =F89 -> 15795746.92 | G91: =G89 -> 14550551.97 | H91: =H89 -> 15898581.83 | I91: =I89 -> 16411036.01 | J91: 14736830.28 | K91: 14421528.1 | L91: 14331291.41 | M91: 14280968.55 | N91: 14179296.5 | O91: 14286369.02 | P91: 14432599.77 | Q91: 14550302.63 | R91: 14665328.43 | S91: 14774125.59 | T91: 14873445.66 | U91: 14967418.34 | V91: 15010181.89 | W91: 15043271.45 | X91: 15066778.79 | Y91: 15080897.45 | Z91: 15085815.8 | AA91: 15087137.73 | AB91: 15170925.2 | AC91: 15253570.55 | AD91: 15334861.46 | AE91: 15414915.86 | AF91: 15493624.5 | AG91: 15571105.02 | AH91: 15647248.41 | AI91: 15721957.09 | AJ91: 15795235.78 | AK91: 15867303.62 | AL91: 15933477.73 | AM91: 16014827.81
A93: Volumes (Therms)
A94: Submission
A95: Domestic | B95: P1 | G95: TO RELINK TO AMcE FILE ONCE REC'd | I95: TO RELINK TO AMcE FILE ONCE REC'd | J95: 80824772.19 | K95: 84247122.93 | L95: 87728447.74 | M95: 91397376.95 | N95: 95063665.47 | O95: 98701544.79 | P95: 102208342.3 | Q95: 105284437.7 | R95: 107824786.6 | S95: 110600663.8 | T95: 113633095.8 | U95: 116657060.1 | V95: 119681024.5 | W95: 122704988.8 | X95: 125728953.1 | Y95: 128752917.5 | Z95: 131776881.8 | AA95: 134800846.1 | AB95: 137824810.5 | AC95: 140450559.3 | AD95: 142241423.2 | AE95: 143634071.6 | AF95: 145026720.1 | AG95: 146419368.5 | AH95: 147812016.9 | AI95: 149204665.3 | AJ95: 150597313.7 | AK95: 152669020.3 | AL95: 154061668.7 | AM95: 155454317.1
A96: Tariff | B96: P2 | J96: 21656580.38 | K96: 21925479.48 | L96: 22202898.7 | M96: 22502431.99 | N96: 22782099.29 | O96: 23078458.71 | P96: 23303938.43 | Q96: 23411909.24 | R96: 23522436.89 | S96: 23652599.82 | T96: 23769255.42 | U96: 23885911.02 | V96: 24002566.62 | W96: 24119222.22 | X96: 24235877.82 | Y96: 24352533.42 | Z96: 24469189.03 | AA96: 24585844.63 | AB96: 24702500.23 | AC96: 24819155.83 | AD96: 24908923.67 | AE96: 24998691.52 | AF96: 25088459.36 | AG96: 25178227.21 | AH96: 25267995.05 | AI96: 25357762.89 | AJ96: 25447530.74 | AK96: 25537298.58 | AL96: 25627066.43 | AM96: 25716834.27
A97: Contract | B97: P3 + P4 | J97: 48365392.28 | K97: 48490392.28 | L97: 48615392.28 | M97: 48740392.28 | N97: 48865392.28 | O97: 48990392.28 | P97: 49115392.28 | Q97: 49240392.28 | R97: 49365392.28 | S97: 49365392.28 | T97: 49365392.28 | U97: 49365392.28 | V97: 49365392.28 | W97: 49365392.28 | X97: 49365392.28 | Y97: 49365392.28 | Z97: 49365392.28 | AA97: 49365392.28 | AB97: 49365392.28 | AC97: 49365392.28 | AD97: 49365392.28 | AE97: 49365392.28 | AF97: 49365392.28 | AG97: 49365392.28 | AH97: 49365392.28 | AI97: 49365392.28 | AJ97: 49365392.28 | AK97: 49365392.28 | AL97: 49365392.28 | AM97: 49365392.28
A98: Total Volume (Therms) - FE GD17 Submission | J98: =SUM(J95:J97) -> 150846744.8 | K98: =SUM(K95:K97) -> 154662994.7 | L98: =SUM(L95:L97) -> 158546738.7 | M98: 162640201.2 | N98: 166711157 | O98: 170770395.8 | P98: 174627673 | Q98: 177936739.2 | R98: 180712615.8 | S98: 183618655.9 | T98: 186767743.5 | U98: 189908363.4 | V98: 193048983.4 | W98: 196189603.3 | X98: 199330223.2 | Y98: 202470843.2 | Z98: 205611463.1 | AA98: 208752083 | AB98: 211892703 | AC98: 214635107.4 | AD98: 216515739.2 | AE98: 217998155.4 | AF98: 219480571.7 | AG98: 220962988 | AH98: 222445404.2 | AI98: 223927820.5 | AJ98: 225410236.8 | AK98: 227571711.1 | AL98: 229054127.4 | AM98: 230536543.7
A99: GD17 Draft Det
A100: Domestic | B100: P1 | J100: 79098372.77 | K100: 82716629.67 | L100: 86266265.17 | M100: 89817557.96 | N100: 93301337.85 | O100: 96681055.1 | P100: 99723283.88 | Q100: 102186071 | R100: 104016134.9 | S100: 106693952.2 | T100: 108893159.9 | U100: 111010002.7 | V100: 113035645.5 | W100: 114947288.3 | X100: 116744931.1 | Y100: 118428573.9 | Z100: 119998216.7 | AA100: 121453859.5 | AB100: 122843002.2 | AC100: 124213145 | AD100: 125525834.1 | AE100: 126819523.2 | AF100: 128094212.3 | AG100: 129349901.4 | AH100: 130586590.5 | AI100: 131804279.6 | AJ100: 133002968.7 | AK100: 134463500.4 | AL100: 135624189.4 | AM100: 136721204.8
A101: Tariff | B101: P2 | J101: 21656580.38 | K101: 21925479.48 | L101: 22202898.7 | M101: 22502431.99 | N101: 22782099.29 | O101: 23078458.71 | P101: 23303938.43 | Q101: 23411909.24 | R101: 23522436.89 | S101: 23652599.82 | T101: 23769255.42 | U101: 23885911.02 | V101: 24002566.62 | W101: 24119222.22 | X101: 24235877.82 | Y101: 24352533.42 | Z101: 24469189.03 | AA101: 24585844.63 | AB101: 24702500.23 | AC101: 24819155.83 | AD101: 24908923.67 | AE101: 24998691.52 | AF101: 25088459.36 | AG101: 25178227.21 | AH101: 25267995.05 | AI101: 25357762.89 | AJ101: 25447530.74 | AK101: 25537298.58 | AL101: 25627066.43 | AM101: 25716834.27
A102: Contract | B102: P3 + P4 | J102: 48365392.28 | K102: 48490392.28 | L102: 48615392.28 | M102: 48740392.28 | N102: 48865392.28 | O102: 48990392.28 | P102: 49115392.28 | Q102: 49240392.28 | R102: 49365392.28 | S102: 49365392.28 | T102: 49365392.28 | U102: 49365392.28 | V102: 49365392.28 | W102: 49365392.28 | X102: 49365392.28 | Y102: 49365392.28 | Z102: 49365392.28 | AA102: 49365392.28 | AB102: 49365392.28 | AC102: 49365392.28 | AD102: 49365392.28 | AE102: 49365392.28 | AF102: 49365392.28 | AG102: 49365392.28 | AH102: 49365392.28 | AI102: 49365392.28 | AJ102: 49365392.28 | AK102: 49365392.28 | AL102: 49365392.28 | AM102: 49365392.28
A103: Total Volume (Therms) - UR Draft Det | J103: =SUM(J100:J102) -> 149120345.4 | K103: 153132501.4 | L103: 157084556.1 | M103: 161060382.2 | N103: 164948829.4 | O103: 168749906.1 | P103: 172142614.6 | Q103: 174838372.5 | R103: 176903964.1 | S103: 179711944.3 | T103: 182027807.6 | U103: 184261306 | V103: 186403604.4 | W103: 188431902.8 | X103: 190346201.2 | Y103: 192146499.6 | Z103: 193832798 | AA103: 195405096.4 | AB103: 196910894.8 | AC103: 198397693.1 | AD103: 199800150.1 | AE103: 201183607 | AF103: 202548064 | AG103: 203893520.9 | AH103: 205219977.8 | AI103: 206527434.8 | AJ103: 207815891.7 | AK103: 209366191.2 | AL103: 210616648.1 | AM103: 211803431.3
A104: GD17 Final Det
A105: Domestic/Very Small IC | B105: P1 | J105: 78884982.77 | K105: 82121076.88 | L105: 85375121.51 | M105: 88664904.92 | N105: 91966156.82 | O105: 95217090.98 | P105: 97358392.7 | Q105: 98897339.07 | R105: 99750607.27 | S105: 101408493.9 | T105: 102550349.1 | U105: 103556378.3 | V105: 104435556.5 | W105: 105186578.8 | X105: 105819506.7 | Y105: 106335951 | Z105: 106738730.9 | AA105: 107030314.4 | AB105: 107251160 | AC105: 107440303.1 | AD105: 107597017.3 | AE105: 107719335.3 | AF105: 107804241 | AG105: 107849492.8 | AH105: 107855541.7 | AI105: 107824022.2 | AJ105: 107757830.6 | AK105: 107889391.3 | AL105: 107759376.3 | AM105: 107152301.3
A106: Small/Medium IC | B106: P2 | J106: 21631048.87 | K106: 21884863.66 | L106: 22162076.32 | M106: 22466168.16 | N106: 22788697.27 | O106: 23123457.5 | P106: 23191804.02 | Q106: 23151549.91 | R106: 23099750.56 | S106: 23047196.49 | T106: 22969667.12 | U106: 22883942.82 | V106: 22791726.76 | W106: 22697047.33 | X106: 22601812.39 | Y106: 22505126.76 | Z106: 22406496.86 | AA106: 22305922.71 | AB106: 22203404.3 | AC106: 22098941.63 | AD106: 21991782.59 | AE106: 21881267.15 | AF106: 21765199.05 | AG106: 21642094.87 | AH106: 21512021.98 | AI106: 21375771.82 | AJ106: 21236072.58 | AK106: 21094877.2 | AL106: 20952185.69 | AM106: 20807998.05
A107: Large IC | B107: P3 | J107: 29597833.4 | K107: 29722833.4 | L107: 29847833.4 | M107: 29972833.4 | N107: 30097833.4 | O107: 30222833.4 | P107: 30094934.79 | Q107: 29964952.84 | R107: 29832887.56 | S107: 29577905.62 | T107: 29322923.67 | U107: 29067941.73 | V107: 28812959.78 | W107: 28557977.84 | X107: 28302995.89 | Y107: 28048013.95 | Z107: 27793032 | AA107: 27538050.06 | AB107: 27283068.11 | AC107: 27028086.17 | AD107: 26773104.22 | AE107: 26518122.28 | AF107: 26263140.33 | AG107: 26008158.39 | AH107: 25753176.44 | AI107: 25498194.5 | AJ107: 25243212.55 | AK107: 24988230.61 | AL107: 24733248.66 | AM107: 24478266.72
A108: Contract | B108: P4 | J108: 18767558.88 | K108: 18767558.88 | L108: 18767558.88 | M108: 18767558.88 | N108: 18767558.88 | O108: 18767558.88 | P108: 18611162.55 | Q108: 18454766.23 | R108: 18298369.91 | S108: 18141973.58 | T108: 17985577.26 | U108: 17829180.93 | V108: 17672784.61 | W108: 17516388.29 | X108: 17359991.96 | Y108: 17203595.64 | Z108: 17047199.31 | AA108: 16890802.99 | AB108: 16734406.67 | AC108: 16578010.34 | AD108: 16421614.02 | AE108: 16265217.69 | AF108: 16108821.37 | AG108: 15952425.05 | AH108: 15796028.72 | AI108: 15639632.4 | AJ108: 15483236.07 | AK108: 15326839.75 | AL108: 15170443.43 | AM108: 15014047.1
A109: Total Volume (Therms) - UR Final Det | J109: =SUM(J105:J108) -> 148881423.9 | K109: 152496332.8 | L109: 156152590.1 | M109: 159871465.4 | N109: 163620246.4 | O109: 167330940.8 | P109: 169256294.1 | Q109: 170468608.1 | R109: 170981615.3 | S109: 172175569.6 | T109: 172828517.1 | U109: 173337443.8 | V109: 173713027.7 | W109: 173957992.2 | X109: 174084306.9 | Y109: 174092687.3 | Z109: 173985459.1 | AA109: 173765090.2 | AB109: 173472039.1 | AC109: 173145341.2 | AD109: 172783518.1 | AE109: 172383942.4 | AF109: 171941401.8 | AG109: 171452171.1 | AH109: 170916768.8 | AI109: 170337620.9 | AJ109: 169720351.8 | AK109: 169299338.8 | AL109: 168615254.1 | AM109: 167452613.2
A111: Q & CC Calcs
E112: Opex | G112: =G91 -> 14550551.97 | H112: =H91 -> 15898581.83 | I112: 16411036.01 | J112: 14736830.28 | K112: 14421528.1 | L112: 14331291.41 | M112: 14280968.55 | N112: 14179296.5 | O112: 14286369.02 | P112: 14432599.77 | Q112: 14550302.63 | R112: 14665328.43 | S112: 14774125.59 | T112: 14873445.66 | U112: 14967418.34 | V112: 15010181.89 | W112: 15043271.45 | X112: 15066778.79 | Y112: 15080897.45 | Z112: 15085815.8 | AA112: 15087137.73 | AB112: 15170925.2 | AC112: 15253570.55 | AD112: 15334861.46 | AE112: 15414915.86 | AF112: 15493624.5 | AG112: 15571105.02 | AH112: 15647248.41 | AI112: 15721957.09 | AJ112: 15795235.78 | AK112: 15867303.62 | AL112: 15933477.73 | AM112: 16014827.81
E113: Capex | G113: 12903134.24 | H113: 12598408.35 | I113: 13087626.1 | J113: =J86 -> 10467716.04 | K113: =K86 -> 10926630.4 | L113: 15615350.56 | M113: 18200456.83 | N113: 16827786.19 | O113: 16189089.26 | P113: 11590088.5 | Q113: 10775872.82 | R113: 13925312.46 | S113: 10981730.57 | T113: 9404661.686 | U113: 8602419.746 | V113: 8315539.422 | W113: 8025033.959 | X113: 8079379.024 | Y113: 7947261.32 | Z113: 7956984.007 | AA113: 7670884.804 | AB113: 7888928.598 | AC113: 7757015.209 | AD113: 7470348.874 | AE113: 8219288.125 | AF113: 8669495.42 | AG113: 9434964.91 | AH113: 9848107.31 | AI113: 10173591.32 | AJ113: 9770673.794 | AK113: 9139134.598 | AL113: 9072348.329 | AM113: 9072348.329
E114: GD14/GD17 Allowed Revenue | G114: 47057.76629 | H114: 48820.29821 | I114: 50636.49034 | J114: ='Pi''s Calc'!D28 -> 51932.24815 | K114: ='Pi''s Calc'!E28 -> 53342.85175 | L114: ='Pi''s Calc'!F28 -> 54768.86653 | M114: ='Pi''s Calc'!G28 -> 56218.55796 | N114: ='Pi''s Calc'!H28 -> 57679.33591 | O114: ='Pi''s Calc'!I28 -> 59124.5837 | P114: ='Pi''s Calc'!J28 -> 59925.66166 | Q114: ='Pi''s Calc'!K28 -> 60449.45389 | R114: ='Pi''s Calc'!L28 -> 60697.55136 | S114: ='Pi''s Calc'!M28 -> 61222.0925 | T114: ='Pi''s Calc'!N28 -> 61533.88396 | U114: ='Pi''s Calc'!O28 -> 61789.10066 | V114: ='Pi''s Calc'!P28 -> 61991.89391 | W114: ='Pi''s Calc'!Q28 -> 62143.1805 | X114: ='Pi''s Calc'!R28 -> 62247.61385 | Y114: ='Pi''s Calc'!S28 -> 62305.51205 | Z114: ='Pi''s Calc'!T28 -> 62317.81338 | AA114: ='Pi''s Calc'!U28 -> 62285.49287 | AB114: ='Pi''s Calc'!V28 -> 62224.53452 | AC114: ='Pi''s Calc'!W28 -> 62150.36008 | AD114: ='Pi''s Calc'!X28 -> 62062.4152 | AE114: ='Pi''s Calc'!Y28 -> 61959.68795 | AF114: ='Pi''s Calc'!Z28 -> 61840.20583 | AG114: ='Pi''s Calc'!AA28 -> 61702.55581 | AH114: ='Pi''s Calc'!AB28 -> 61546.94 | AI114: ='Pi''s Calc'!AC28 -> 61374.28558 | AJ114: ='Pi''s Calc'!AD28 -> 61186.70683 | AK114: ='Pi''s Calc'!AE28 -> 61076.7224 | AL114: ='Pi''s Calc'!AF28 -> 60862.86494 | AM114: ='Pi''s Calc'!AG28 -> 60460.00266
A116: Working Capital (£2014) | G116: -3912000 | H116: =G116-(H112-G112)*12%+(H114-G114)*1000*15% -> -3809383.795 | I116: =H116-(I112-H112)*12%+(I114-H114)*1000*15% -> -3598449.477 | J116: =I116-(J112-I112)*12%+(J114-I114)*1000*15% -> -3203181.118 | K116: =J116-(K112-J112)*12%+(K114-J114)*1000*15% -> -2953754.317 | L116: =K116-(L112-K112)*12%+(L114-K114)*1000*15% -> -2729023.697 | M116: -2505531.239 | N116: -2274213.901 | O116: -2070275.434 | P116: -1967661.429 | Q116: -1903216.938 | R116: -1879805.414 | S116: -1814179.903 | T116: -1779329.591 | U116: -1752323.808 | V116: -1727036.447 | W116: -1708314.205 | X116: -1695470.084 | Y116: -1688479.592 | Z116: -1687224.596 | AA116: -1692231.303 | AB116: -1711429.552 | AC116: -1732473.16 | AD116: -1755419.803 | AE116: -1780435.417 | AF116: -1807802.773 | AG116: -1837747.938 | AH116: -1870227.516 | AI116: -1905090.721 | AJ116: -1942020.976 | AK116: -1967166.781 | AL116: -2007186.294 | AM116: -2077377.644
A118: Capital Creditors (£2014) | G118: -6395000 | H118: =G118-(H113-G113)*1/6 -> -6344212.352 | I118: =H118-(I113-H113)*1/6 -> -6425748.644 | J118: =I118-(J113-I113)*1/6 -> -5989096.967 | K118: =J118-(K113-J113)*1/6 -> -6065582.693 | L118: =K118-(L113-K113)*1/6 -> -6847036.054 | M118: -7277887.098 | N118: -7049108.659 | O118: -6942659.171 | P118: -6176159.043 | Q118: -6040456.43 | R118: -6565363.038 | S118: -6074766.055 | T118: -5811921.241 | U118: -5678214.251 | V118: -5630400.864 | W118: -5581983.287 | X118: -5591040.798 | Y118: -5569021.18 | Z118: -5570641.628 | AA118: -5522958.428 | AB118: -5559299.06 | AC118: -5537313.495 | AD118: -5489535.773 | AE118: -5614358.981 | AF118: -5689393.53 | AG118: -5816971.779 | AH118: -5885828.845 | AI118: -5940076.181 | AJ118: -5872923.259 | AK118: -5767666.727 | AL118: -5756535.682 | AM118: -5756535.682

Sheet Opening Values
B2: Calculating Opening Values | D2: RPI | E2: 2006-09-01 | F2: 200.1
E3: 2010-09-01 | F3: 225.3
E4: 2011-09-01 | F4: 237.9
E5: 2012-09-01 | F5: 244.2
E6: 2014-09-01 | F6: 257.6
E7: 2014-12-01 | F7: 257.5
B11: Opening DAV/TRV (2017)
B12: Sep £2014 | D12: 2016
D13: £'000s
B14: DAV | D14: =DAV!I37 -> 407140.6755
B15: PA | D15: 192305.9
B16: Q & CC | D16: -9870.164793
B17: TRV UM Adjustments PNGL12 | D17: 8159.056918
B18: TRV UM Adjustments GD14 | D18: -1910.231402
B20: TRV | D20: =SUM(D14:D19) -> 595825.2363
D21: =D20/rpi_14*F7 -> 595593.9376
B22: N.B. for GD14 this TRV of £503.6m is as per Final Document Paragraph 10.40:
B24: http://www.uregni.gov.uk/uploads/publications/2013-12-20_GD14_Price_Control_for_NI_GDNs_2014-2016_Final_Determination.pdf
B26: 5-year Allowed Capex Overspend | C26: £'000s
B27: Sep £2014 | C27: GD14 Determined | H27: PNGL12 Actuals | J27: GD14 Actuals
C28: 2012 | D28: 2013 | E28: 2014 | F28: 2015 | G28: 2016 | H28: 2017 | I28: 2018 | J28: 2019 | K28: 2020 | L28: 2021
B29: Inclusions of overspend in DAVt | C29: =0/1000 -> 0 | D29: =0/1000 -> 0 | E29: =299551.037728997/1000/rpi_06*rpi_14 -> 385.6289221 | F29: =480869.248089519/1000/rpi_06*rpi_14 -> 619.0500665 | G29: =270457.265233916/1000/rpi_06*rpi_14 -> 348.1748702 | H29: 0 | I29: 0 | J29: 113.6807187 | K29: 764.1822918 | L29: 1364.139435
B30: remaining average life | C30: 0 | D30: 0 | E30: 24 | F30: 25 | G30: 22 | H30: 0 | I30: 0 | J30: 15 | K30: 24 | L30: 27
B32: For detail on the Rolling Capex Incentive please see Appendix 5 of:
B34: http://www.uregni.gov.uk/uploads/publications/PNGL12_Final_Decisions_FINAL.pdf

Sheet DAV
A1: Condition 2.3.17 Calculation of DAV
C2: Sep £2014
C3: £'000
P5: IMPORTANT NOTE: Total Capex and Breakdown from 2023 Onwards are forecasts and will be determined as part of the Next Price Control.
D6: 2011 | E6: 2012 | F6: 2013 | G6: 2014 | H6: 2015 | I6: 2016 | J6: 2017 | K6: 2018 | L6: 2019 | M6: 2020 | N6: 2021 | O6: 2022 | P6: 2023 | Q6: 2024 | R6: 2025 | S6: 2026 | T6: 2027 | U6: 2028 | V6: 2029 | W6: 2030 | X6: 2031 | Y6: 2032 | Z6: 2033 | AA6: 2034 | AB6: 2035 | AC6: 2036 | AD6: 2037 | AE6: 2038 | AF6: 2039 | AG6: 2040 | AH6: 2041 | AI6: 2042 | AJ6: 2043 | AK6: 2044 | AL6: 2045 | AM6: 2046
A8: Opening DAV (Incl Rolling Capex Incentive) | E8: =D37+'Opening Values'!C29 -> 410309.1525 | F8: =E37+'Opening Values'!D29 -> 410889.0207 | G8: =F37+'Opening Values'!E29 -> 412050.5267 | H8: =G37+'Opening Values'!F29 -> 411951.9883 | I8: =H37+'Opening Values'!G29 -> 410039.2081 | J8: =I37+'Opening Values'!H29+SUM('PDP Workings - FD'!B9:C9)/1000-IF(DAV!J6='PDP Workings - FD'!H15,SUM('PDP Workings - FD'!B9:I9)/1000,0) -> 426144.3216 | K8: =J37+'Opening Values'!I29+'PDP Workings - FD'!D9/1000-IF(DAV!K6='PDP Workings - FD'!H15,SUM('PDP Workings - FD'!B9:I9)/1000,0) -> 430670.6356 | L8: =K37+'Opening Values'!J29+'PDP Workings - FD'!E9/1000-IF(DAV!L6='PDP Workings - FD'!H15,SUM('PDP Workings - FD'!B9:I9)/1000,0) -> 427408.4425 | M8: =L37+'Opening Values'!K29+'PDP Workings - FD'!F9/1000-IF(DAV!M6='PDP Workings - FD'!H15,SUM('PDP Workings - FD'!B9:I9)/1000,0) -> 399220.7345 | N8: =M37+'Opening Values'!L29+'PDP Workings - FD'!G9/1000-IF(DAV!N6='PDP Workings - FD'!H15,SUM('PDP Workings - FD'!B9:I9)/1000,0) -> 402222.2308 | O8: =N37+'Opening Values'!H29+'PDP Workings - FD'!H9/1000-IF(DAV!O6='PDP Workings - FD'!H15,SUM('PDP Workings - FD'!B9:I9)/1000,0) -> 401760.1297 | P8: =O37+'Opening Values'!H29+'PDP Workings - FD'!I9/1000-IF(DAV!P6='PDP Workings - FD'!H15,SUM('PDP Workings - FD'!B9:I9)/1000,0) -> 400018.7292 | Q8: =P37 -> 393148.9411 | R8: 384980.3238 | S8: 379399.1489 | T8: 370418.4892 | U8: 359601.7952 | V8: 347777.9754 | W8: 335485.0381 | X8: 322714.5682 | Y8: 309790.1226 | Z8: 296590.7837 | AA8: 283289.7038 | AB8: 269625.9216 | AC8: 256126.5101 | AD8: 242472.7001 | AE8: 228572.6367 | AF8: 215444.7301 | AG8: 202692.2973 | AH8: 190595.0955 | AI8: 178693.4565 | AJ8: 166873.8747 | AK8: 154394.1631 | AL8: 141095.9411 | AM8: =AL37 -> 127510.2085
A10: Capex
A11: Mains | E11: =SUM(Inputs!E71:E75,Inputs!E83)/1000 -> 2021.388888 | F11: =SUM(Inputs!F71:F75,Inputs!F83)/1000 -> 2267.335069 | G11: =SUM(Inputs!G71:G75,Inputs!G83)/1000 -> 2833.919197 | H11: =SUM(Inputs!H71:H75,Inputs!H83)/1000 -> 2841.883517 | I11: =SUM(Inputs!I71:I75,Inputs!I83)/1000 -> 2333.681586 | J11: =SUM(Inputs!J71:J75,Inputs!J83)/1000 -> 637.0716673 | K11: =SUM(Inputs!K71:K75,Inputs!K83)/1000 -> 488.0168097 | L11: =SUM(Inputs!L71:L75,Inputs!L83)/1000 -> 4683.177727 | M11: =SUM(Inputs!M71:M75,Inputs!M83)/1000 -> 6467.175163 | N11: =SUM(Inputs!N71:N75,Inputs!N83)/1000 -> 4925.798298 | O11: =SUM(Inputs!O71:O75,Inputs!O83)/1000 -> 3786.492645 | P11: =SUM(Inputs!P71:P75,Inputs!P83)/1000 -> 1076.279527 | Q11: =SUM(Inputs!Q71:Q75,Inputs!Q83)/1000 -> 1076.279527 | R11: =SUM(Inputs!R71:R75,Inputs!R83)/1000 -> 4131.87304 | S11: =SUM(Inputs!S71:S75,Inputs!S83)/1000 -> 2290.64894 | T11: =SUM(Inputs!T71:T75,Inputs!T83)/1000 -> 1076.279527 | U11: =SUM(Inputs!U71:U75,Inputs!U83)/1000 -> 1076.279527 | V11: =SUM(Inputs!V71:V75,Inputs!V83)/1000 -> 1076.279527 | W11: =SUM(Inputs!W71:W75,Inputs!W83)/1000 -> 1076.279527 | X11: =SUM(Inputs!X71:X75,Inputs!X83)/1000 -> 1076.279527 | Y11: =SUM(Inputs!Y71:Y75,Inputs!Y83)/1000 -> 1076.279527 | Z11: =SUM(Inputs!Z71:Z75,Inputs!Z83)/1000 -> 1076.279527 | AA11: =SUM(Inputs!AA71:AA75,Inputs!AA83)/1000 -> 1076.279527 | AB11: =SUM(Inputs!AB71:AB75,Inputs!AB83)/1000 -> 1076.279527 | AC11: =SUM(Inputs!AC71:AC75,Inputs!AC83)/1000 -> 1076.279527 | AD11: =SUM(Inputs!AD71:AD75,Inputs!AD83)/1000 -> 1076.279527 | AE11: =SUM(Inputs!AE71:AE75,Inputs!AE83)/1000 -> 1069.440774 | AF11: =SUM(Inputs!AF71:AF75,Inputs!AF83)/1000 -> 1192.074389 | AG11: =SUM(Inputs!AG71:AG75,Inputs!AG83)/1000 -> 1083.00142 | AH11: =SUM(Inputs!AH71:AH75,Inputs!AH83)/1000 -> 1063.830455 | AI11: =SUM(Inputs!AI71:AI75,Inputs!AI83)/1000 -> 1032.216599 | AJ11: =SUM(Inputs!AJ71:AJ75,Inputs!AJ83)/1000 -> 1085.717386 | AK11: =SUM(Inputs!AK71:AK75,Inputs!AK83)/1000 -> 1085.717386 | AL11: =SUM(Inputs!AL71:AL75,Inputs!AL83)/1000 -> 1085.717386 | AM11: =SUM(Inputs!AM71:AM75,Inputs!AM83)/1000 -> 1085.717386
A12: Services | E12: =SUM(Inputs!E76,Inputs!E78)/1000 -> 5630.276278 | F12: =SUM(Inputs!F76,Inputs!F78)/1000 -> 6268.755824 | G12: =SUM(Inputs!G76,Inputs!G78)/1000 -> 7141.008931 | H12: =SUM(Inputs!H76,Inputs!H78)/1000 -> 6261.254325 | I12: =SUM(Inputs!I76,Inputs!I78)/1000 -> 5710.585955 | J12: =SUM(Inputs!J76,Inputs!J78)/1000 -> 5586.571146 | K12: =SUM(Inputs!K76,Inputs!K78)/1000 -> 5506.175167 | L12: =SUM(Inputs!L76,Inputs!L78)/1000 -> 5483.746764 | M12: =SUM(Inputs!M76,Inputs!M78)/1000 -> 5498.606665 | N12: =SUM(Inputs!N76,Inputs!N78)/1000 -> 5473.948968 | O12: =SUM(Inputs!O76,Inputs!O78)/1000 -> 5420.263138 | P12: =SUM(Inputs!P76,Inputs!P78)/1000 -> 3911.02613 | Q12: =SUM(Inputs!Q76,Inputs!Q78)/1000 -> 3712.202599 | R12: =SUM(Inputs!R76,Inputs!R78)/1000 -> 3555.885324 | S12: =SUM(Inputs!S76,Inputs!S78)/1000 -> 3436.932037 | T12: =SUM(Inputs!T76,Inputs!T78)/1000 -> 3229.89503 | U12: =SUM(Inputs!U76,Inputs!U78)/1000 -> 3064.663265 | V12: =SUM(Inputs!V76,Inputs!V78)/1000 -> 2837.800956 | W12: =SUM(Inputs!W76,Inputs!W78)/1000 -> 2648.079288 | X12: =SUM(Inputs!X76,Inputs!X78)/1000 -> 2462.19698 | Y12: =SUM(Inputs!Y76,Inputs!Y78)/1000 -> 2274.108385 | Z12: =SUM(Inputs!Z76,Inputs!Z78)/1000 -> 2088.709328 | AA12: =SUM(Inputs!AA76,Inputs!AA78)/1000 -> 1903.31027 | AB12: =SUM(Inputs!AB76,Inputs!AB78)/1000 -> 1883.446086 | AC12: =SUM(Inputs!AC76,Inputs!AC78)/1000 -> 1863.581901 | AD12: =SUM(Inputs!AD76,Inputs!AD78)/1000 -> 1841.467366 | AE12: =SUM(Inputs!AE76,Inputs!AE78)/1000 -> 1810.920977 | AF12: =SUM(Inputs!AF76,Inputs!AF78)/1000 -> 1779.235846 | AG12: =SUM(Inputs!AG76,Inputs!AG78)/1000 -> 1734.726467 | AH12: =SUM(Inputs!AH76,Inputs!AH78)/1000 -> 1696.650716 | AI12: =SUM(Inputs!AI76,Inputs!AI78)/1000 -> 1654.550868 | AJ12: =SUM(Inputs!AJ76,Inputs!AJ78)/1000 -> 1621.60882 | AK12: =SUM(Inputs!AK76,Inputs!AK78)/1000 -> 1595.123241 | AL12: =SUM(Inputs!AL76,Inputs!AL78)/1000 -> 1575.259056 | AM12: =SUM(Inputs!AM76,Inputs!AM78)/1000 -> 1575.259056
A13: Meters | E13: =SUM(Inputs!E77,Inputs!E79)/1000 -> 2358.720413 | F13: =SUM(Inputs!F77,Inputs!F79)/1000 -> 2450.864214 | G13: =SUM(Inputs!G77,Inputs!G79)/1000 -> 2659.650289 | H13: =SUM(Inputs!H77,Inputs!H79)/1000 -> 2427.731566 | I13: =SUM(Inputs!I77,Inputs!I79)/1000 -> 2290.463685 | J13: =SUM(Inputs!J77,Inputs!J79)/1000 -> 3270.834248 | K13: =SUM(Inputs!K77,Inputs!K79)/1000 -> 3877.699983 | L13: =SUM(Inputs!L77,Inputs!L79)/1000 -> 4128.289313 | M13: =SUM(Inputs!M77,Inputs!M79)/1000 -> 4817.621517 | N13: =SUM(Inputs!N77,Inputs!N79)/1000 -> 5167.182144 | O13: =SUM(Inputs!O77,Inputs!O79)/1000 -> 5839.192408 | P13: =SUM(Inputs!P77,Inputs!P79)/1000 -> 5877.064247 | Q13: =SUM(Inputs!Q77,Inputs!Q79)/1000 -> 5281.554455 | R13: =SUM(Inputs!R77,Inputs!R79)/1000 -> 5241.790238 | S13: =SUM(Inputs!S77,Inputs!S79)/1000 -> 4454.403469 | T13: =SUM(Inputs!T77,Inputs!T79)/1000 -> 4440.881646 | U13: =SUM(Inputs!U77,Inputs!U79)/1000 -> 3820.394648 | V13: =SUM(Inputs!V77,Inputs!V79)/1000 -> 3783.062865 | W13: =SUM(Inputs!W77,Inputs!W79)/1000 -> 3701.251237 | X13: =SUM(Inputs!X77,Inputs!X79)/1000 -> 3960.06684 | Y13: =SUM(Inputs!Y77,Inputs!Y79)/1000 -> 4034.84659 | Z13: =SUM(Inputs!Z77,Inputs!Z79)/1000 -> 4248.50824 | AA13: =SUM(Inputs!AA77,Inputs!AA79)/1000 -> 4166.348 | AB13: =SUM(Inputs!AB77,Inputs!AB79)/1000 -> 4406.242398 | AC13: =SUM(Inputs!AC77,Inputs!AC79)/1000 -> 4296.179611 | AD13: =SUM(Inputs!AD77,Inputs!AD79)/1000 -> 4033.839266 | AE13: =SUM(Inputs!AE77,Inputs!AE79)/1000 -> 4823.218297 | AF13: =SUM(Inputs!AF77,Inputs!AF79)/1000 -> 5185.645622 | AG13: =SUM(Inputs!AG77,Inputs!AG79)/1000 -> 6109.148398 | AH13: =SUM(Inputs!AH77,Inputs!AH79)/1000 -> 6583.345088 | AI13: =SUM(Inputs!AI77,Inputs!AI79)/1000 -> 6986.752792 | AJ13: =SUM(Inputs!AJ77,Inputs!AJ79)/1000 -> 6566.570726 | AK13: =SUM(Inputs!AK77,Inputs!AK79)/1000 -> 5964.165668 | AL13: =SUM(Inputs!AL77,Inputs!AL79)/1000 -> 5919.230002 | AM13: =SUM(Inputs!AM77,Inputs!AM79)/1000 -> 5919.230002
A14: Other 40 yrs - TMA | E14: =SUM(Inputs!E80:E82)/1000 -> 3083.124789 | F14: =SUM(Inputs!F80:F82)/1000 -> 2771.021301 | G14: =SUM(Inputs!G80:G82)/1000 -> 100.7047338 | H14: =SUM(Inputs!H80:H82)/1000 -> 100.1005054 | I14: =SUM(Inputs!I80:I82)/1000 -> 1075.576002 | J14: =SUM(Inputs!J82)/1000 -> 736.0848443 | K14: =SUM(Inputs!K82)/1000 -> 819.6129558 | L14: =SUM(Inputs!L82)/1000 -> 1086.986532 | M14: =SUM(Inputs!M82)/1000 -> 1185.427051 | N14: =SUM(Inputs!N82)/1000 -> 1030.744185 | O14: =SUM(Inputs!O82)/1000 -> 914.5324155 | P14: =SUM(Inputs!P82)/1000 -> 486.9647019 | Q14: =SUM(Inputs!Q82)/1000 -> 467.0823488 | R14: =SUM(Inputs!R82)/1000 -> 757.0099725 | S14: =SUM(Inputs!S82)/1000 -> 560.9922339 | T14: =SUM(Inputs!T82)/1000 -> 418.851592 | U14: =SUM(Inputs!U82)/1000 -> 402.3284154 | V14: =SUM(Inputs!V82)/1000 -> 379.6421845 | W14: =SUM(Inputs!W82)/1000 -> 360.6700177 | X14: =SUM(Inputs!X82)/1000 -> 342.0817869 | Y14: =SUM(Inputs!Y82)/1000 -> 323.2729274 | Z14: =SUM(Inputs!Z82)/1000 -> 304.7330217 | AA14: =SUM(Inputs!AA82)/1000 -> 286.193116 | AB14: =SUM(Inputs!AB82)/1000 -> 284.2066975 | AC14: =SUM(Inputs!AC82)/1000 -> 282.220279 | AD14: =SUM(Inputs!AD82)/1000 -> 280.0088255 | AE14: =SUM(Inputs!AE82)/1000 -> 276.9541866 | AF14: =SUM(Inputs!AF82)/1000 -> 273.7856735 | AG14: =SUM(Inputs!AG82)/1000 -> 269.3347356 | AH14: =SUM(Inputs!AH82)/1000 -> 265.5271605 | AI14: =SUM(Inputs!AI82)/1000 -> 261.3171757 | AJ14: =SUM(Inputs!AJ82)/1000 -> 258.022971 | AK14: =SUM(Inputs!AK82)/1000 -> 255.374413 | AL14: =SUM(Inputs!AL82)/1000 -> 253.3879945 | AM14: =SUM(Inputs!AM82)/1000 -> 253.3879945
A15: Other 5 yrs | J15: =SUM(Inputs!J80)/1000 -> 237.1541329 | K15: =SUM(Inputs!K80)/1000 -> 235.1254806 | L15: =SUM(Inputs!L80)/1000 -> 233.150227 | M15: =SUM(Inputs!M80)/1000 -> 231.6264323 | N15: =SUM(Inputs!N80)/1000 -> 230.1125965 | O15: =SUM(Inputs!O80)/1000 -> 228.6086547 | P15: =SUM(Inputs!P80)/1000 -> 238.7538901 | Q15: =SUM(Inputs!Q80)/1000 -> 238.7538901 | R15: =SUM(Inputs!R80)/1000 -> 238.7538901 | S15: =SUM(Inputs!S80)/1000 -> 238.7538901 | T15: =SUM(Inputs!T80)/1000 -> 238.7538901 | U15: =SUM(Inputs!U80)/1000 -> 238.7538901 | V15: =SUM(Inputs!V80)/1000 -> 238.7538901 | W15: =SUM(Inputs!W80)/1000 -> 238.7538901 | X15: =SUM(Inputs!X80)/1000 -> 238.7538901 | Y15: =SUM(Inputs!Y80)/1000 -> 238.7538901 | Z15: =SUM(Inputs!Z80)/1000 -> 238.7538901 | AA15: =SUM(Inputs!AA80)/1000 -> 238.7538901 | AB15: =SUM(Inputs!AB80)/1000 -> 238.7538901 | AC15: =SUM(Inputs!AC80)/1000 -> 238.7538901 | AD15: =SUM(Inputs!AD80)/1000 -> 238.7538901 | AE15: =SUM(Inputs!AE80)/1000 -> 238.7538901 | AF15: =SUM(Inputs!AF80)/1000 -> 238.7538901 | AG15: =SUM(Inputs!AG80)/1000 -> 238.7538901 | AH15: =SUM(Inputs!AH80)/1000 -> 238.7538901 | AI15: =SUM(Inputs!AI80)/1000 -> 238.7538901 | AJ15: =SUM(Inputs!AJ80)/1000 -> 238.7538901 | AK15: =SUM(Inputs!AK80)/1000 -> 238.7538901 | AL15: =SUM(Inputs!AL80)/1000 -> 238.7538901 | AM15: =SUM(Inputs!AM80)/1000 -> 238.7538901
A16: Total Capex | E16: =SUM(E11:E14) -> 13093.51037 | F16: =SUM(F11:F14) -> 13757.97641 | G16: =SUM(G11:G14) -> 12735.28315 | H16: 11630.96991 | I16: 11410.30723 | J16: =SUM(J11:J15) -> 10467.71604 | K16: =SUM(K11:K15) -> 10926.6304 | L16: 15615.35056 | M16: 18200.45683 | N16: 16827.78619 | O16: 16189.08926 | P16: 11590.0885 | Q16: 10775.87282 | R16: 13925.31246 | S16: 10981.73057 | T16: 9404.661686 | U16: 8602.419746 | V16: 8315.539422 | W16: 8025.033959 | X16: 8079.379024 | Y16: 7947.26132 | Z16: 7956.984007 | AA16: 7670.884804 | AB16: 7888.928598 | AC16: 7757.015209 | AD16: 7470.348874 | AE16: 8219.288125 | AF16: 8669.49542 | AG16: 9434.96491 | AH16: 9848.10731 | AI16: 10173.59132 | AJ16: 9770.673794 | AK16: 9139.134598 | AL16: 9072.348329 | AM16: 9072.348329
E17: =ROUND(DAV!E16*1000,0)=ROUND(Inputs!E86,0) -> TRUE | F17: =ROUND(DAV!F16*1000,0)=ROUND(Inputs!F86,0) -> TRUE | G17: =ROUND(DAV!G16*1000,0)=ROUND(Inputs!G86,0) -> TRUE | H17: =ROUND(DAV!H16*1000,0)=ROUND(Inputs!H86,0) -> TRUE | I17: =ROUND(DAV!I16*1000,0)=ROUND(Inputs!I86,0) -> TRUE | J17: =ROUND(DAV!J16*1000,0)=ROUND(Inputs!J86,0) -> TRUE | K17: =ROUND(DAV!K16*1000,0)=ROUND(Inputs!K86,0) -> TRUE | L17: =ROUND(DAV!L16*1000,0)=ROUND(Inputs!L86,0) -> TRUE | M17: =ROUND(DAV!M16*1000,0)=ROUND(Inputs!M86,0) -> TRUE | N17: =ROUND(DAV!N16*1000,0)=ROUND(Inputs!N86,0) -> TRUE | O17: =ROUND(DAV!O16*1000,0)=ROUND(Inputs!O86,0) -> TRUE | P17: =ROUND(DAV!P16*1000,0)=ROUND(Inputs!P86,0) -> TRUE | Q17: =ROUND(DAV!Q16*1000,0)=ROUND(Inputs!Q86,0) -> TRUE | R17: =ROUND(DAV!R16*1000,0)=ROUND(Inputs!R86,0) -> TRUE | S17: =ROUND(DAV!S16*1000,0)=ROUND(Inputs!S86,0) -> TRUE | T17: =ROUND(DAV!T16*1000,0)=ROUND(Inputs!T86,0) -> TRUE | U17: =ROUND(DAV!U16*1000,0)=ROUND(Inputs!U86,0) -> TRUE | V17: =ROUND(DAV!V16*1000,0)=ROUND(Inputs!V86,0) -> TRUE | W17: =ROUND(DAV!W16*1000,0)=ROUND(Inputs!W86,0) -> TRUE | X17: =ROUND(DAV!X16*1000,0)=ROUND(Inputs!X86,0) -> TRUE | Y17: =ROUND(DAV!Y16*1000,0)=ROUND(Inputs!Y86,0) -> TRUE | Z17: =ROUND(DAV!Z16*1000,0)=ROUND(Inputs!Z86,0) -> TRUE | AA17: =ROUND(DAV!AA16*1000,0)=ROUND(Inputs!AA86,0) -> TRUE | AB17: =ROUND(DAV!AB16*1000,0)=ROUND(Inputs!AB86,0) -> TRUE | AC17: =ROUND(DAV!AC16*1000,0)=ROUND(Inputs!AC86,0) -> TRUE | AD17: =ROUND(DAV!AD16*1000,0)=ROUND(Inputs!AD86,0) -> TRUE | AE17: =ROUND(DAV!AE16*1000,0)=ROUND(Inputs!AE86,0) -> TRUE | AF17: =ROUND(DAV!AF16*1000,0)=ROUND(Inputs!AF86,0) -> TRUE | AG17: =ROUND(DAV!AG16*1000,0)=ROUND(Inputs!AG86,0) -> TRUE | AH17: =ROUND(DAV!AH16*1000,0)=ROUND(Inputs!AH86,0) -> TRUE | AI17: =ROUND(DAV!AI16*1000,0)=ROUND(Inputs!AI86,0) -> TRUE | AJ17: =ROUND(DAV!AJ16*1000,0)=ROUND(Inputs!AJ86,0) -> TRUE | AK17: =ROUND(DAV!AK16*1000,0)=ROUND(Inputs!AK86,0) -> TRUE | AL17: =ROUND(DAV!AL16*1000,0)=ROUND(Inputs!AL86,0) -> TRUE | AM17: =ROUND(DAV!AM16*1000,0)=ROUND(Inputs!AM86,0) -> TRUE
A18: Basis of depreciation | B18: FE | C18: PNGL
C19: FE
A20: Annual depreciation of additional capex
A21: Mains (40 years straight line) | B21: =IF(B18=C18,40,40) -> 40 | C21: 40 | E21: =E11/$B$21 -> 50.53472219 | F21: =F11/$B$21 -> 56.68337674 | G21: =G11/$B$21 -> 70.84797992 | H21: =H11/$B$21 -> 71.04708792 | I21: =I11/$B$21 -> 58.34203964 | J21: =J11/$B$21 -> 15.92679168 | K21: 12.20042024 | L21: 117.0794432 | M21: 161.6793791 | N21: 123.1449574 | O21: 94.66231612 | P21: 26.90698819 | Q21: 26.90698819 | R21: =R11/$B$21 -> 103.296826 | S21: 57.2662235 | T21: 26.90698819 | U21: 26.90698819 | V21: 26.90698819 | W21: 26.90698819 | X21: 26.90698819 | Y21: 26.90698819 | Z21: 26.90698819 | AA21: 26.90698819 | AB21: 26.90698819 | AC21: 26.90698819 | AD21: 26.90698819 | AE21: 26.73601935 | AF21: 29.80185971 | AG21: 27.0750355 | AH21: 26.59576138 | AI21: 25.80541498 | AJ21: 27.14293465 | AK21: 27.14293465 | AL21: 27.14293465 | AM21: 27.14293465
A22: Services (35 or 40 years straight line) | B22: =IF(B18=C18,35,40) -> 40 | C22: 35 | E22: =E12/$C$22 -> 160.8650365 | F22: =F12/$C$22 -> 179.1073092 | G22: =G12/$C$22 -> 204.0288266 | H22: =H12/$C$22 -> 178.8929807 | I22: =I12/$C$22 -> 163.1595987 | J22: =J12/$B$22 -> 139.6642787 | K22: =K12/$B$22 -> 137.6543792 | L22: =L12/$B$22 -> 137.0936691 | M22: 137.4651666 | N22: 136.8487242 | O22: 135.5065784 | P22: 97.77565325 | Q22: 92.80506498 | R22: 88.89713309 | S22: 85.92330093 | T22: 80.74737576 | U22: 76.61658163 | V22: 70.94502389 | W22: 66.20198219 | X22: 61.55492451 | Y22: 56.85270963 | Z22: 52.2177332 | AA22: 47.58275676 | AB22: 47.08615214 | AC22: 46.58954753 | AD22: 46.03668414 | AE22: 45.27302441 | AF22: 44.48089616 | AG22: 43.36816168 | AH22: 42.41626789 | AI22: 41.36377169 | AJ22: 40.54022051 | AK22: 39.87808102 | AL22: 39.3814764 | AM22: 39.3814764
A23: Meters (15 years straight line) | B23: =IF(B18=C18,15,15) -> 15 | C23: 15 | E23: =E13/$B$23 -> 157.2480275 | F23: =F13/$B$23 -> 163.3909476 | G23: 177.3100192 | H23: 161.8487711 | I23: 152.697579 | J23: 218.0556165 | K23: 258.5133322 | L23: 275.2192875 | M23: 321.1747678 | N23: 344.4788096 | O23: 389.2794939 | P23: 391.8042832 | Q23: 352.1036303 | R23: 349.4526825 | S23: 296.9602313 | T23: 296.0587764 | U23: 254.6929766 | V23: 252.204191 | W23: 246.7500824 | X23: 264.004456 | Y23: 268.9897726 | Z23: 283.2338827 | AA23: 277.7565333 | AB23: 293.7494932 | AC23: 286.4119741 | AD23: 268.9226177 | AE23: 321.5478865 | AF23: 345.7097081 | AG23: 407.2765598 | AH23: 438.8896725 | AI23: 465.7835194 | AJ23: 437.7713817 | AK23: 397.6110445 | AL23: 394.6153335 | AM23: 394.6153335
A24: Other (40 years straight line) | B24: =IF(B18=C18,40,40) -> 40 | C24: 40 | E24: =E14/$B$24 -> 77.07811971 | F24: =F14/$B$24 -> 69.27553251 | G24: 2.517618346 | H24: 2.502512636 | I24: =I14/$B$24 -> 26.88940006 | J24: =J14/$B$24 -> 18.40212111 | K24: =K14/$B$24 -> 20.4903239 | L24: =L14/$B$24 -> 27.17466331 | M24: 29.63567627 | N24: 25.76860463 | O24: 22.86331039 | P24: 12.17411755 | Q24: 11.67705872 | R24: 18.92524931 | S24: 14.02480585 | T24: 10.4712898 | U24: 10.05821039 | V24: 9.491054611 | W24: 9.016750442 | X24: 8.552044674 | Y24: 8.081823186 | Z24: 7.618325542 | AA24: 7.154827899 | AB24: 7.105167437 | AC24: 7.055506975 | AD24: 7.000220637 | AE24: 6.923854664 | AF24: 6.844641838 | AG24: 6.733368391 | AH24: 6.638179012 | AI24: 6.532929392 | AJ24: 6.450574274 | AK24: 6.384360325 | AL24: 6.334699863 | AM24: 6.334699863
A25: Other (5 years straight line) | B25: =IF(B18=C18,40,5) -> 5 | C25: 40 | E25: =E15/$C$25 -> 0 | F25: =F15/$C$25 -> 0 | G25: =G15/$C$25 -> 0 | H25: =H15/$C$25 -> 0 | I25: =I15/$C$25 -> 0 | J25: =J15/$B$25 -> 47.43082659 | K25: =K15/$B$25 -> 47.02509611 | L25: =L15/$B$25 -> 46.63004541 | M25: =M15/$B$25 -> 46.32528646 | N25: =N15/$B$25 -> 46.02251931 | O25: =O15/$B$25 -> 45.72173095 | P25: 47.75077801 | Q25: 47.75077801 | R25: 47.75077801 | S25: 47.75077801 | T25: 47.75077801 | U25: 47.75077801 | V25: 47.75077801 | W25: 47.75077801 | X25: 47.75077801 | Y25: 47.75077801 | Z25: 47.75077801 | AA25: 47.75077801 | AB25: 47.75077801 | AC25: 47.75077801 | AD25: 47.75077801 | AE25: 47.75077801 | AF25: 47.75077801 | AG25: 47.75077801 | AH25: =AH15/$B$25 -> 47.75077801 | AI25: 47.75077801 | AJ25: 47.75077801 | AK25: 47.75077801 | AL25: 47.75077801 | AM25: 47.75077801
A27: Depreciation | E27: =B28 -> 34 | F27: =E27-1 -> 33 | G27: =F27-1 -> 32 | H27: 31 | I27: 30 | J27: 29 | K27: 28 | L27: 27 | M27: 26 | N27: 25 | O27: 24 | P27: 23 | Q27: 22 | R27: 21 | S27: 20 | T27: 19 | U27: 18 | V27: 17 | W27: 16 | X27: 15 | Y27: 14 | Z27: 13 | AA27: 12 | AB27: 11 | AC27: 10 | AD27: 9 | AE27: 8 | AF27: 7 | AG27: 6 | AH27: 5 | AI27: 4 | AJ27: 3 | AK27: 2 | AL27: 1 | AM27: 0
A28: Distribution asset (average life remaining) | B28: 34 | E28: =IF(E27>0,$D$37/$E$27,0) -> 12067.91625 | F28: =IF(F27>0,$D$37/$E$27,0) -> 12067.91625 | G28: =IF(G27>0,$D$37/$E$27,0) -> 12067.91625 | H28: 12067.91625 | I28: 12067.91625 | J28: =IF(J27>0,$D$37/$E$27,0) -> 12067.91625 | K28: 12067.91625 | L28: 12067.91625 | M28: =IF(M27>0,$D$37/$E$27,0) -> 12067.91625 | N28: 12067.91625 | O28: 12067.91625 | P28: 12067.91625 | Q28: 12067.91625 | R28: 12067.91625 | S28: 12067.91625 | T28: 12067.91625 | U28: 12067.91625 | V28: 12067.91625 | W28: 12067.91625 | X28: 12067.91625 | Y28: 12067.91625 | Z28: 12067.91625 | AA28: 12067.91625 | AB28: 12067.91625 | AC28: 12067.91625 | AD28: 12067.91625 | AE28: 12067.91625 | AF28: 12067.91625 | AG28: 12067.91625 | AH28: 12067.91625 | AI28: 12067.91625 | AJ28: 12067.91625 | AK28: 12067.91625 | AL28: 12067.91625 | AM28: =IF(AM27>0,($D$37-$E$28-$F$28)/$G$27,0) -> 0
A29: Total Allowed Capex Overspend (average life remaining) | G29: ='Opening Values'!$E$29/'Opening Values'!$E$30 -> 16.06787176 | H29: ='Opening Values'!$E$29/'Opening Values'!$E$30+'Opening Values'!$F$29/'Opening Values'!$F$30 -> 40.82987442 | I29: ='Opening Values'!$E$29/'Opening Values'!$E$30+'Opening Values'!$F$29/'Opening Values'!$F$30+'Opening Values'!$G$29/'Opening Values'!$G$30 -> 56.65600488 | J29: ='Opening Values'!$E$29/'Opening Values'!$E$30+'Opening Values'!$F$29/'Opening Values'!$F$30+'Opening Values'!$G$29/'Opening Values'!$G$30 -> 56.65600488 | K29: ='Opening Values'!$E$29/'Opening Values'!$E$30+'Opening Values'!$F$29/'Opening Values'!$F$30+'Opening Values'!$G$29/'Opening Values'!$G$30 -> 56.65600488 | L29: ='Opening Values'!$E$29/'Opening Values'!$E$30+'Opening Values'!$F$29/'Opening Values'!$F$30+'Opening Values'!$G$29/'Opening Values'!$G$30+'Opening Values'!$J$29/'Opening Values'!$J$30 -> 64.23471946 | M29: ='Opening Values'!$E$29/'Opening Values'!$E$30+'Opening Values'!$F$29/'Opening Values'!$F$30+'Opening Values'!$G$29/'Opening Values'!$G$30+'Opening Values'!$J$29/'Opening Values'!$J$30+'Opening Values'!$K$29/'Opening Values'!$K$30 -> 96.07564828 | N29: ='Opening Values'!$E$29/'Opening Values'!$E$30+'Opening Values'!$F$29/'Opening Values'!$F$30+'Opening Values'!$G$29/'Opening Values'!$G$30+'Opening Values'!$J$29/'Opening Values'!$J$30+'Opening Values'!$K$29/'Opening Values'!$K$30+'Opening Values'!$L$29/'Opening Values'!$L$30 -> 146.5993311 | O29: ='Opening Values'!$E$29/'Opening Values'!$E$30+'Opening Values'!$F$29/'Opening Values'!$F$30+'Opening Values'!$G$29/'Opening Values'!$G$30+'Opening Values'!$J$29/'Opening Values'!$J$30+'Opening Values'!$K$29/'Opening Values'!$K$30+'Opening Values'!$L$29/'Opening Values'!$L$30 -> 146.5993311 | P29: ='Opening Values'!$E$29/'Opening Values'!$E$30+'Opening Values'!$F$29/'Opening Values'!$F$30+'Opening Values'!$G$29/'Opening Values'!$G$30+'Opening Values'!$J$29/'Opening Values'!$J$30+'Opening Values'!$K$29/'Opening Values'!$K$30+'Opening Values'!$L$29/'Opening Values'!$L$30 -> 146.5993311 | Q29: ='Opening Values'!$E$29/'Opening Values'!$E$30+'Opening Values'!$F$29/'Opening Values'!$F$30+'Opening Values'!$G$29/'Opening Values'!$G$30+'Opening Values'!$J$29/'Opening Values'!$J$30+'Opening Values'!$K$29/'Opening Values'!$K$30+'Opening Values'!$L$29/'Opening Values'!$L$30 -> 146.5993311 | R29: ='Opening Values'!$E$29/'Opening Values'!$E$30+'Opening Values'!$F$29/'Opening Values'!$F$30+'Opening Values'!$G$29/'Opening Values'!$G$30+'Opening Values'!$J$29/'Opening Values'!$J$30+'Opening Values'!$K$29/'Opening Values'!$K$30+'Opening Values'!$L$29/'Opening Values'!$L$30 -> 146.5993311 | S29: ='Opening Values'!$E$29/'Opening Values'!$E$30+'Opening Values'!$F$29/'Opening Values'!$F$30+'Opening Values'!$G$29/'Opening Values'!$G$30+'Opening Values'!$J$29/'Opening Values'!$J$30+'Opening Values'!$K$29/'Opening Values'!$K$30+'Opening Values'!$L$29/'Opening Values'!$L$30 -> 146.5993311 | T29: ='Opening Values'!$E$29/'Opening Values'!$E$30+'Opening Values'!$F$29/'Opening Values'!$F$30+'Opening Values'!$G$29/'Opening Values'!$G$30+'Opening Values'!$J$29/'Opening Values'!$J$30+'Opening Values'!$K$29/'Opening Values'!$K$30+'Opening Values'!$L$29/'Opening Values'!$L$30 -> 146.5993311 | U29: ='Opening Values'!$E$29/'Opening Values'!$E$30+'Opening Values'!$F$29/'Opening Values'!$F$30+'Opening Values'!$G$29/'Opening Values'!$G$30+'Opening Values'!$J$29/'Opening Values'!$J$30+'Opening Values'!$K$29/'Opening Values'!$K$30+'Opening Values'!$L$29/'Opening Values'!$L$30 -> 146.5993311 | V29: ='Opening Values'!$E$29/'Opening Values'!$E$30+'Opening Values'!$F$29/'Opening Values'!$F$30+'Opening Values'!$G$29/'Opening Values'!$G$30+'Opening Values'!$J$29/'Opening Values'!$J$30+'Opening Values'!$K$29/'Opening Values'!$K$30+'Opening Values'!$L$29/'Opening Values'!$L$30 -> 146.5993311 | W29: ='Opening Values'!$E$29/'Opening Values'!$E$30+'Opening Values'!$F$29/'Opening Values'!$F$30+'Opening Values'!$G$29/'Opening Values'!$G$30+'Opening Values'!$J$29/'Opening Values'!$J$30+'Opening Values'!$K$29/'Opening Values'!$K$30+'Opening Values'!$L$29/'Opening Values'!$L$30 -> 146.5993311 | X29: ='Opening Values'!$E$29/'Opening Values'!$E$30+'Opening Values'!$F$29/'Opening Values'!$F$30+'Opening Values'!$G$29/'Opening Values'!$G$30+'Opening Values'!$J$29/'Opening Values'!$J$30+'Opening Values'!$K$29/'Opening Values'!$K$30+'Opening Values'!$L$29/'Opening Values'!$L$30 -> 146.5993311 | Y29: ='Opening Values'!$E$29/'Opening Values'!$E$30+'Opening Values'!$F$29/'Opening Values'!$F$30+'Opening Values'!$G$29/'Opening Values'!$G$30+'Opening Values'!$J$29/'Opening Values'!$J$30+'Opening Values'!$K$29/'Opening Values'!$K$30+'Opening Values'!$L$29/'Opening Values'!$L$30 -> 146.5993311 | Z29: ='Opening Values'!$E$29/'Opening Values'!$E$30+'Opening Values'!$F$29/'Opening Values'!$F$30+'Opening Values'!$G$29/'Opening Values'!$G$30+'Opening Values'!$J$29/'Opening Values'!$J$30+'Opening Values'!$K$29/'Opening Values'!$K$30+'Opening Values'!$L$29/'Opening Values'!$L$30 -> 146.5993311 | AA29: ='Opening Values'!$E$29/'Opening Values'!$E$30+'Opening Values'!$F$29/'Opening Values'!$F$30+'Opening Values'!$G$29/'Opening Values'!$G$30+'Opening Values'!$K$29/'Opening Values'!$K$30+'Opening Values'!$L$29/'Opening Values'!$L$30 -> 139.0206165 | AB29: ='Opening Values'!$E$29/'Opening Values'!$E$30+'Opening Values'!$F$29/'Opening Values'!$F$30+'Opening Values'!$G$29/'Opening Values'!$G$30+'Opening Values'!$K$29/'Opening Values'!$K$30+'Opening Values'!$L$29/'Opening Values'!$L$30 -> 139.0206165 | AC29: ='Opening Values'!$E$29/'Opening Values'!$E$30+'Opening Values'!$F$29/'Opening Values'!$F$30+'Opening Values'!$G$29/'Opening Values'!$G$30+'Opening Values'!$K$29/'Opening Values'!$K$30+'Opening Values'!$L$29/'Opening Values'!$L$30 -> 139.0206165 | AD29: ='Opening Values'!$E$29/'Opening Values'!$E$30+'Opening Values'!$F$29/'Opening Values'!$F$30+'Opening Values'!$G$29/'Opening Values'!$G$30+'Opening Values'!$K$29/'Opening Values'!$K$30+'Opening Values'!$L$29/'Opening Values'!$L$30 -> 139.0206165 | AE29: ='Opening Values'!$F$29/'Opening Values'!$F$30+'Opening Values'!$K$29/'Opening Values'!$K$30+'Opening Values'!$L$29/'Opening Values'!$L$30 -> 107.1266143 | AF29: ='Opening Values'!$F$29/'Opening Values'!$F$30+'Opening Values'!$K$29/'Opening Values'!$K$30+'Opening Values'!$L$29/'Opening Values'!$L$30 -> 107.1266143 | AG29: ='Opening Values'!$K$29/'Opening Values'!$K$30+'Opening Values'!$L$29/'Opening Values'!$L$30 -> 82.3646116 | AH29: ='Opening Values'!$K$29/'Opening Values'!$K$30+'Opening Values'!$L$29/'Opening Values'!$L$30 -> 82.3646116 | AI29: ='Opening Values'!$K$29/'Opening Values'!$K$30+'Opening Values'!$L$29/'Opening Values'!$L$30 -> 82.3646116 | AJ29: ='Opening Values'!$K$29/'Opening Values'!$K$30+'Opening Values'!$L$29/'Opening Values'!$L$30 -> 82.3646116 | AK29: ='Opening Values'!$L$29/'Opening Values'!$L$30 -> 50.52368278 | AL29: ='Opening Values'!$L$29/'Opening Values'!$L$30 -> 50.52368278 | AM29: ='Opening Values'!$L$29/'Opening Values'!$L$30 -> 50.52368278
A30: Mains (40 years straight line) | E30: =IF($B$18=$C$18,SUM($E$21:E$21),SUM($E$21:E$21)) -> 50.53472219 | F30: =IF($B$18=$C$18,SUM($E$21:F$21),SUM($E$21:F$21)) -> 107.2180989 | G30: =IF($B$18=$C$18,SUM($E$21:G$21),SUM($E$21:G$21)) -> 178.0660789 | H30: =IF($B$18=$C$18,SUM($E$21:H$21),SUM($E$21:H$21)) -> 249.1131668 | I30: =IF($B$18=$C$18,SUM($E$21:I$21),SUM($E$21:I$21)) -> 307.4552064 | J30: =IF($B$18=$C$18,SUM($E$21:J$21),SUM($E$21:J$21)) -> 323.3819981 | K30: =IF($B$18=$C$18,SUM($E$21:K$21),SUM($E$21:K$21)) -> 335.5824183 | L30: =IF($B$18=$C$18,SUM($E$21:L$21),SUM($E$21:L$21)) -> 452.6618615 | M30: =IF($B$18=$C$18,SUM($E$21:M$21),SUM($E$21:M$21)) -> 614.3412406 | N30: =IF($B$18=$C$18,SUM($E$21:N$21),SUM($E$21:N$21)) -> 737.486198 | O30: =IF($B$18=$C$18,SUM($E$21:O$21),SUM($E$21:O$21)) -> 832.1485142 | P30: =IF($B$18=$C$18,SUM($E$21:P$21),SUM($E$21:P$21)) -> 859.0555023 | Q30: =IF($B$18=$C$18,SUM($E$21:Q$21),SUM($E$21:Q$21)) -> 885.9624905 | R30: =IF($B$18=$C$18,SUM($E$21:R$21),SUM($E$21:R$21)) -> 989.2593165 | S30: =IF($B$18=$C$18,SUM($E$21:S$21),SUM($E$21:S$21)) -> 1046.52554 | T30: =IF($B$18=$C$18,SUM($E$21:T$21),SUM($E$21:T$21)) -> 1073.432528 | U30: =IF($B$18=$C$18,SUM($E$21:U$21),SUM($E$21:U$21)) -> 1100.339516 | V30: =IF($B$18=$C$18,SUM($E$21:V$21),SUM($E$21:V$21)) -> 1127.246505 | W30: =IF($B$18=$C$18,SUM($E$21:W$21),SUM($E$21:W$21)) -> 1154.153493 | X30: =IF($B$18=$C$18,SUM($E$21:X$21),SUM($E$21:X$21)) -> 1181.060481 | Y30: =IF($B$18=$C$18,SUM($E$21:Y$21),SUM($E$21:Y$21)) -> 1207.967469 | Z30: =IF($B$18=$C$18,SUM($E$21:Z$21),SUM($E$21:Z$21)) -> 1234.874457 | AA30: =IF($B$18=$C$18,SUM($E$21:AA$21),SUM($E$21:AA$21)) -> 1261.781446 | AB30: =IF($B$18=$C$18,SUM($E$21:AB$21),SUM($E$21:AB$21)) -> 1288.688434 | AC30: =IF($B$18=$C$18,SUM($E$21:AC$21),SUM($E$21:AC$21)) -> 1315.595422 | AD30: =IF($B$18=$C$18,SUM($E$21:AD$21),SUM($E$21:AD$21)) -> 1342.50241 | AE30: =IF($B$18=$C$18,SUM($E$21:AE$21),SUM($E$21:AE$21)) -> 1369.238429 | AF30: =IF($B$18=$C$18,SUM($E$21:AF$21),SUM($E$21:AF$21)) -> 1399.040289 | AG30: =IF($B$18=$C$18,SUM($E$21:AG$21),SUM($E$21:AG$21)) -> 1426.115325 | AH30: =IF($B$18=$C$18,SUM($E$21:AH$21),SUM($E$21:AH$21)) -> 1452.711086 | AI30: =IF($B$18=$C$18,SUM($E$21:AI$21),SUM($E$21:AI$21)) -> 1478.516501 | AJ30: =IF($B$18=$C$18,SUM($E$21:AJ$21),SUM($E$21:AJ$21)) -> 1505.659436 | AK30: =IF($B$18=$C$18,SUM($E$21:AK$21),SUM($E$21:AK$21)) -> 1532.80237 | AL30: =IF($B$18=$C$18,SUM($E$21:AL$21),SUM($E$21:AL$21)) -> 1559.945305 | AM30: =IF($B$18=$C$18,SUM($E$21:AM$21),SUM($E$21:AM$21)) -> 1587.08824
A31: Services (35 or 40 years straight line) | E31: =IF($B$18=$C$18,SUM($E$22:E22),SUM($E$22:E22)) -> 160.8650365 | F31: =IF($B$18=$C$18,SUM($E$22:F22),SUM($E$22:F22)) -> 339.9723458 | G31: =IF($B$18=$C$18,SUM($E$22:G22),SUM($E$22:G22)) -> 544.0011724 | H31: =IF($B$18=$C$18,SUM($E$22:H22),SUM($E$22:H22)) -> 722.8941531 | I31: =IF($B$18=$C$18,SUM($E$22:I22),SUM($E$22:I22)) -> 886.0537518 | J31: =IF($B$18=$C$18,SUM($E$22:J22),SUM($E$22:J22)) -> 1025.71803 | K31: =IF($B$18=$C$18,SUM($E$22:K22),SUM($E$22:K22)) -> 1163.37241 | L31: =IF($B$18=$C$18,SUM($E$22:L22),SUM($E$22:L22)) -> 1300.466079 | M31: =IF($B$18=$C$18,SUM($E$22:M22),SUM($E$22:M22)) -> 1437.931245 | N31: =IF($B$18=$C$18,SUM($E$22:N22),SUM($E$22:N22)) -> 1574.77997 | O31: =IF($B$18=$C$18,SUM($E$22:O22),SUM($E$22:O22)) -> 1710.286548 | P31: =IF($B$18=$C$18,SUM($E$22:P22),SUM($E$22:P22)) -> 1808.062201 | Q31: =IF($B$18=$C$18,SUM($E$22:Q22),SUM($E$22:Q22)) -> 1900.867266 | R31: =IF($B$18=$C$18,SUM($E$22:R22),SUM($E$22:R22)) -> 1989.764399 | S31: =IF($B$18=$C$18,SUM($E$22:S22),SUM($E$22:S22)) -> 2075.6877 | T31: =IF($B$18=$C$18,SUM($E$22:T22),SUM($E$22:T22)) -> 2156.435076 | U31: =IF($B$18=$C$18,SUM($E$22:U22),SUM($E$22:U22)) -> 2233.051658 | V31: =IF($B$18=$C$18,SUM($E$22:V22),SUM($E$22:V22)) -> 2303.996682 | W31: =IF($B$18=$C$18,SUM($E$22:W22),SUM($E$22:W22)) -> 2370.198664 | X31: =IF($B$18=$C$18,SUM($E$22:X22),SUM($E$22:X22)) -> 2431.753588 | Y31: =IF($B$18=$C$18,SUM($E$22:Y22),SUM($E$22:Y22)) -> 2488.606298 | Z31: =IF($B$18=$C$18,SUM($E$22:Z22),SUM($E$22:Z22)) -> 2540.824031 | AA31: =IF($B$18=$C$18,SUM($E$22:AA22),SUM($E$22:AA22)) -> 2588.406788 | AB31: =IF($B$18=$C$18,SUM($E$22:AB22),SUM($E$22:AB22)) -> 2635.49294 | AC31: =IF($B$18=$C$18,SUM($E$22:AC22),SUM($E$22:AC22)) -> 2682.082487 | AD31: =IF($B$18=$C$18,SUM($E$22:AD22),SUM($E$22:AD22)) -> 2728.119172 | AE31: =IF($B$18=$C$18,SUM($E$22:AE22),SUM($E$22:AE22)) -> 2773.392196 | AF31: =IF($B$18=$C$18,SUM($E$22:AF22),SUM($E$22:AF22)) -> 2817.873092 | AG31: =IF($B$18=$C$18,SUM($E$22:AG22),SUM($E$22:AG22)) -> 2861.241254 | AH31: =IF($B$18=$C$18,SUM($E$22:AH22),SUM($E$22:AH22)) -> 2903.657522 | AI31: =IF($B$18=$C$18,SUM($E$22:AI22),SUM($E$22:AI22)) -> 2945.021293 | AJ31: =IF($B$18=$C$18,SUM($E$22:AJ22),SUM($E$22:AJ22)) -> 2985.561514 | AK31: =IF($B$18=$C$18,SUM($E$22:AK22),SUM($E$22:AK22)) -> 3025.439595 | AL31: =IF($B$18=$C$18,SUM($E$22:AL22),SUM($E$22:AL22)) -> 3064.821071 | AM31: =IF($B$18=$C$18,SUM($E$22:AM22),SUM($E$22:AM22)) -> 3104.202548
A32: Meters (15 years straight line) | E32: =IF($B$18=$C$18,SUM($E$23:E23),SUM($E$23:E23)) -> 157.2480275 | F32: =IF($B$18=$C$18,SUM($E$23:F23),SUM($E$23:F23)) -> 320.6389751 | G32: =IF($B$18=$C$18,SUM($E$23:G23),SUM($E$23:G23)) -> 497.9489944 | H32: =IF($B$18=$C$18,SUM($E$23:H23),SUM($E$23:H23)) -> 659.7977655 | I32: =IF($B$18=$C$18,SUM($E$23:I23),SUM($E$23:I23)) -> 812.4953444 | J32: =IF($B$18=$C$18,SUM($E$23:J23),SUM($E$23:J23)) -> 1030.550961 | K32: =IF($B$18=$C$18,SUM($E$23:K23),SUM($E$23:K23)) -> 1289.064293 | L32: =IF($B$18=$C$18,SUM($E$23:L23),SUM($E$23:L23)) -> 1564.283581 | M32: =IF($B$18=$C$18,SUM($E$23:M23),SUM($E$23:M23)) -> 1885.458349 | N32: =IF($B$18=$C$18,SUM($E$23:N23),SUM($E$23:N23)) -> 2229.937158 | O32: =IF($B$18=$C$18,SUM($E$23:O23),SUM($E$23:O23)) -> 2619.216652 | P32: =IF($B$18=$C$18,SUM($E$23:P23),SUM($E$23:P23)) -> 3011.020935 | Q32: =IF($B$18=$C$18,SUM($E$23:Q23),SUM($E$23:Q23)) -> 3363.124565 | R32: =IF($B$18=$C$18,SUM($E$23:R23),SUM($E$23:R23)) -> 3712.577248 | S32: =IF($B$18=$C$18,SUM(E23:S23),SUM(E23:S23)) -> 4009.537479 | T32: =IF($B$18=$C$18,SUM(F23:T23),SUM(F23:T23)) -> 4148.348228 | U32: =IF($B$18=$C$18,SUM(G23:U23),SUM(G23:U23)) -> 4239.650257 | V32: =IF($B$18=$C$18,SUM(H23:V23),SUM(H23:V23)) -> 4314.544429 | W32: 4399.44574 | X32: 4510.752617 | Y32: 4561.686773 | Z32: 4586.407324 | AA32: 4588.94457 | AB32: 4561.519295 | AC32: 4503.452459 | AD32: 4383.095583 | AE32: 4312.839187 | AF32: 4306.445264 | AG32: 4364.269142 | AH32: 4506.198583 | AI32: 4675.923326 | AJ32: 4859.001731 | AK32: 5004.408585 | AL32: 5152.273836 | AM32: =IF($B$18=$C$18,SUM(Y23:AM23),SUM(Y23:AM23)) -> 5282.884713
A33: Other (40 years straight line) | E33: =IF($B$18=$C$18,SUM($E$24:E24),SUM($E$24:E24)) -> 77.07811971 | F33: =IF($B$18=$C$18,SUM($E$24:F24),SUM($E$24:F24)) -> 146.3536522 | G33: =IF($B$18=$C$18,SUM($E$24:G24),SUM($E$24:G24)) -> 148.8712706 | H33: =IF($B$18=$C$18,SUM($E$24:H24),SUM($E$24:H24)) -> 151.3737832 | I33: =IF($B$18=$C$18,SUM($E$24:I24),SUM($E$24:I24)) -> 178.2631833 | J33: =IF($B$18=$C$18,SUM($E$24:J24),SUM($E$24:J24)) -> 196.6653044 | K33: =IF($B$18=$C$18,SUM($E$24:K24),SUM($E$24:K24)) -> 217.1556283 | L33: =IF($B$18=$C$18,SUM($E$24:L24),SUM($E$24:L24)) -> 244.3302916 | M33: =IF($B$18=$C$18,SUM($E$24:M24),SUM($E$24:M24)) -> 273.9659679 | N33: =IF($B$18=$C$18,SUM($E$24:N24),SUM($E$24:N24)) -> 299.7345725 | O33: =IF($B$18=$C$18,SUM($E$24:O24),SUM($E$24:O24)) -> 322.5978829 | P33: =IF($B$18=$C$18,SUM($E$24:P24),SUM($E$24:P24)) -> 334.7720004 | Q33: =IF($B$18=$C$18,SUM($E$24:Q24),SUM($E$24:Q24)) -> 346.4490591 | R33: =IF($B$18=$C$18,SUM($E$24:R24),SUM($E$24:R24)) -> 365.3743085 | S33: =IF($B$18=$C$18,SUM($E$24:S24),SUM($E$24:S24)) -> 379.3991143 | T33: =IF($B$18=$C$18,SUM($E$24:T24),SUM($E$24:T24)) -> 389.8704041 | U33: =IF($B$18=$C$18,SUM($E$24:U24),SUM($E$24:U24)) -> 399.9286145 | V33: =IF($B$18=$C$18,SUM($E$24:V24),SUM($E$24:V24)) -> 409.4196691 | W33: =IF($B$18=$C$18,SUM($E$24:W24),SUM($E$24:W24)) -> 418.4364195 | X33: =IF($B$18=$C$18,SUM($E$24:X24),SUM($E$24:X24)) -> 426.9884642 | Y33: =IF($B$18=$C$18,SUM($E$24:Y24),SUM($E$24:Y24)) -> 435.0702874 | Z33: =IF($B$18=$C$18,SUM($E$24:Z24),SUM($E$24:Z24)) -> 442.6886129 | AA33: =IF($B$18=$C$18,SUM($E$24:AA24),SUM($E$24:AA24)) -> 449.8434408 | AB33: =IF($B$18=$C$18,SUM($E$24:AB24),SUM($E$24:AB24)) -> 456.9486083 | AC33: =IF($B$18=$C$18,SUM($E$24:AC24),SUM($E$24:AC24)) -> 464.0041153 | AD33: =IF($B$18=$C$18,SUM($E$24:AD24),SUM($E$24:AD24)) -> 471.0043359 | AE33: =IF($B$18=$C$18,SUM($E$24:AE24),SUM($E$24:AE24)) -> 477.9281906 | AF33: =IF($B$18=$C$18,SUM($E$24:AF24),SUM($E$24:AF24)) -> 484.7728324 | AG33: =IF($B$18=$C$18,SUM($E$24:AG24),SUM($E$24:AG24)) -> 491.5062008 | AH33: =IF($B$18=$C$18,SUM($E$24:AH24),SUM($E$24:AH24)) -> 498.1443798 | AI33: =IF($B$18=$C$18,SUM($E$24:AI24),SUM($E$24:AI24)) -> 504.6773092 | AJ33: =IF($B$18=$C$18,SUM($E$24:AJ24),SUM($E$24:AJ24)) -> 511.1278835 | AK33: =IF($B$18=$C$18,SUM($E$24:AK24),SUM($E$24:AK24)) -> 517.5122438 | AL33: =IF($B$18=$C$18,SUM($E$24:AL24),SUM($E$24:AL24)) -> 523.8469436 | AM33: =IF($B$18=$C$18,SUM($E$24:AM24),SUM($E$24:AM24)) -> 530.1816435
A34: Other (5 years straight line) | E34: =IF($B$18=$C$18,SUM($E$25:E25),SUM($E$25:E25)) -> 0 | F34: =IF($B$18=$C$18,SUM($E$25:F25),SUM($E$25:F25)) -> 0 | G34: =IF($B$18=$C$18,SUM($E$25:G25),SUM($E$25:G25)) -> 0 | H34: =IF($B$18=$C$18,SUM($E$25:H25),SUM($E$25:H25)) -> 0 | I34: =IF($B$18=$C$18,SUM($E$25:I25),SUM(E25:I25)) -> 0 | J34: =IF($B$18=$C$18,SUM($E$25:J25),SUM(F25:J25)) -> 47.43082659 | K34: =IF($B$18=$C$18,SUM($E$25:K25),SUM(G25:K25)) -> 94.4559227 | L34: =IF($B$18=$C$18,SUM($E$25:L25),SUM(H25:L25)) -> 141.0859681 | M34: =IF($B$18=$C$18,SUM($E$25:M25),SUM(I25:M25)) -> 187.4112546 | N34: =IF($B$18=$C$18,SUM($E$25:N25),SUM(J25:N25)) -> 233.4337739 | O34: =IF($B$18=$C$18,SUM($E$25:O25),SUM(K25:O25)) -> 231.7246782 | P34: =IF($B$18=$C$18,SUM($E$25:P25),SUM(L25:P25)) -> 232.4503601 | Q34: =IF($B$18=$C$18,SUM($E$25:Q25),SUM(M25:Q25)) -> 233.5710927 | R34: =IF($B$18=$C$18,SUM($E$25:R25),SUM(N25:R25)) -> 234.9965843 | S34: =IF($B$18=$C$18,SUM($E$25:S25),SUM(O25:S25)) -> 236.724843 | T34: =IF($B$18=$C$18,SUM($E$25:T25),SUM(P25:T25)) -> 238.7538901 | U34: =IF($B$18=$C$18,SUM($E$25:U25),SUM(Q25:U25)) -> 238.7538901 | V34: =IF($B$18=$C$18,SUM($E$25:V25),SUM(R25:V25)) -> 238.7538901 | W34: =IF($B$18=$C$18,SUM($E$25:W25),SUM(S25:W25)) -> 238.7538901 | X34: =IF($B$18=$C$18,SUM($E$25:X25),SUM(T25:X25)) -> 238.7538901 | Y34: =IF($B$18=$C$18,SUM($E$25:Y25),SUM(U25:Y25)) -> 238.7538901 | Z34: =IF($B$18=$C$18,SUM($E$25:Z25),SUM(V25:Z25)) -> 238.7538901 | AA34: =IF($B$18=$C$18,SUM($E$25:AA25),SUM(W25:AA25)) -> 238.7538901 | AB34: =IF($B$18=$C$18,SUM($E$25:AB25),SUM(X25:AB25)) -> 238.7538901 | AC34: =IF($B$18=$C$18,SUM($E$25:AC25),SUM(Y25:AC25)) -> 238.7538901 | AD34: =IF($B$18=$C$18,SUM($E$25:AD25),SUM(Z25:AD25)) -> 238.7538901 | AE34: =IF($B$18=$C$18,SUM($E$25:AE25),SUM(AA25:AE25)) -> 238.7538901 | AF34: =IF($B$18=$C$18,SUM($E$25:AF25),SUM(AB25:AF25)) -> 238.7538901 | AG34: =IF($B$18=$C$18,SUM($E$25:AG25),SUM(AC25:AG25)) -> 238.7538901 | AH34: =IF($B$18=$C$18,SUM($E$25:AH25),SUM(AD25:AH25)) -> 238.7538901 | AI34: =IF($B$18=$C$18,SUM($E$25:AI25),SUM(AE25:AI25)) -> 238.7538901 | AJ34: =IF($B$18=$C$18,SUM($E$25:AJ25),SUM(AF25:AJ25)) -> 238.7538901 | AK34: =IF($B$18=$C$18,SUM($E$25:AK25),SUM(AG25:AK25)) -> 238.7538901 | AL34: =IF($B$18=$C$18,SUM($E$25:AL25),SUM(AH25:AL25)) -> 238.7538901 | AM34: =IF($B$18=$C$18,SUM($E$25:AM25),SUM(AI25:AM25)) -> 238.7538901
A35: Total Depreciation | E35: =SUM(E28:E34) -> 12513.64215 | F35: =SUM(F28:F34) -> 12982.09932 | G35: 13452.87164 | H35: 13891.92499 | I35: 14308.83974 | J35: 14748.31937 | K35: 15224.20293 | L35: 15834.97875 | M35: 16563.09995 | N35: 17289.88725 | O35: 17930.48986 | P35: 18459.87658 | Q35: 18944.49005 | R35: 19506.48744 | S35: 19962.39026 | T35: 20221.35571 | U35: 20426.23952 | V35: 20608.47675 | W35: 20795.50379 | X35: 21003.82462 | Y35: 21146.6003 | Z35: 21258.06389 | AA35: 21334.667 | AB35: 21388.34003 | AC35: 21410.82524 | AD35: 21370.41226 | AE35: 21347.19476 | AF35: 21421.92823 | AG35: 21532.16667 | AH35: 21749.74632 | AI35: 21993.17318 | AJ35: 22250.38531 | AK35: 22437.35662 | AL35: 22658.08098 | AM35: =SUM(AM28:AM34) -> 10793.63472
A37: Closing DAV | D37: =388965.431017349/rpi*rpi_14 -> 410309.1525 | E37: =E$8+E$16-E$35 -> 410889.0207 | F37: =F$8+F$16-F$35 -> 411664.8978 | G37: 411332.9382 | H37: 409691.0332 | I37: 407140.6755 | J37: 421863.7182 | K37: =K$8+K$16-K$35 -> 426373.0631 | L37: 427188.8144 | M37: 400858.0914 | N37: 401760.1297 | O37: 400018.7292 | P37: 393148.9411 | Q37: 384980.3238 | R37: 379399.1489 | S37: 370418.4892 | T37: 359601.7952 | U37: 347777.9754 | V37: 335485.0381 | W37: 322714.5682 | X37: 309790.1226 | Y37: 296590.7837 | Z37: 283289.7038 | AA37: 269625.9216 | AB37: 256126.5101 | AC37: 242472.7001 | AD37: 228572.6367 | AE37: 215444.7301 | AF37: 202692.2973 | AG37: 190595.0955 | AH37: 178693.4565 | AI37: 166873.8747 | AJ37: 154394.1631 | AK37: 141095.9411 | AL37: 127510.2085 | AM37: =AM$8+AM$16-AM$35 -> 125788.9221

Sheet PDP Workings - FD
A2: Bulk & Infill Removal Calcs - East Down
B4: 2014-09-01 | C4: 257.6
B5: 2015-09-01 | C5: 259.6
A6: Total PDP Additions
A7: PDP DAV | B7: 2016 | C7: =B7+1 -> 2017 | D7: =C7+1 -> 2018 | E7: 2019 | F7: 2020 | G7: 2021 | H7: 2022 | I7: 2023
A8: Op Bal | B8: 0 | C8: =B12 -> 11720148.99 | D8: =C12 -> 18228038.24 | E8: 26339691.54 | F8: 26543083.71 | G8: 25824777.16 | H8: 25106470.61 | I8: 24388164.05
A9: Total PDP Additions | B9: =B21 -> 12020665.63 | C9: =C21 -> 6982980.396 | D9: 8806917.391 | E9: 921698.7228 | F9: 0 | G9: 0 | H9: 0 | I9: 0
A10: Additions Depn | B10: =-B9/40 -> -300516.6409 | C10: =-C9/40 -> -174574.5099 | D10: =-D9/40 -> -220172.9348 | E10: -23042.46807 | F10: 0 | G10: 0 | H10: 0 | I10: 0
A11: Annual Depn (40 yrs) | B11: =B10 -> -300516.6409 | C11: =C10+B11 -> -475091.1508 | D11: =D10+C11 -> -695264.0855 | E11: =E10+D11 -> -718306.5536 | F11: -718306.5536 | G11: -718306.5536 | H11: -718306.5536 | I11: -718306.5536
A12: Cl Bal | B12: =SUM(B8:B9,B11) -> 11720148.99 | C12: =SUM(C8:C9,C11) -> 18228038.24 | D12: =SUM(D8:D9,D11) -> 26339691.54 | E12: =SUM(E8:E9,E11) -> 26543083.71 | F12: =SUM(F8:F9,F11) -> 25824777.16 | G12: =SUM(G8:G9,G11) -> 25106470.61 | H12: 24388164.05 | I12: 23669857.5
A15: Payment Received 31st Dec | C15: 2019 | D15: Removal of infill from opening TRV in year | H15: =C15+1 -> 2020
A18: £Sep 2014 | B18: 2016 | C18: =B18+1 -> 2017 | D18: =C18+1 -> 2018 | E18: =D18+1 -> 2019 | F18: =E18+1 -> 2020 | G18: =F18+1 -> 2021 | H18: =G18+1 -> 2022 | I18: =H18+1 -> 2023
A19: Bulk Mains | B19: 11436406.05 | C19: 5845774.766 | D19: 6505138.514 | E19: 0 | F19: 0 | G19: 0 | H19: 0 | I19: 0
A20: 'Other' Mains | B20: 584259.5871 | C20: 1137205.63 | D20: 2301778.877 | E20: 921698.7228 | F20: 0 | G20: 0 | H20: 0 | I20: 0
B21: =SUM(B19:B20) -> 12020665.63 | C21: =SUM(C19:C20) -> 6982980.396 | D21: 8806917.391 | E21: 921698.7228 | F21: 0 | G21: 0 | H21: 0 | I21: 0
B22: =B21 -> 12020665.63 | C22: =B22+C21 -> 19003646.03 | D22: =C22+D21 -> 27810563.42 | E22: =D22+E21 -> 28732262.14 | F22: =E22+F21 -> 28732262.14

Sheet Pi's Calc
A1: PNGL 'P' Tariff Model - Calculation of Pi tariffs, Allowed Revenues, PA and TRV
D2: Return
D3: GD17 | E3: 0.0426
A4: p | B4: Sep £2014 | D4: Post GD17 | E4: =E3 -> 0.0426
B5: £'000
A6: Real Return pa | D6: =E3 -> 0.0426 | E6: =D6 -> 0.0426 | F6: =E6 -> 0.0426 | G6: =E4 -> 0.0426 | H6: =G6 -> 0.0426 | I6: =H6 -> 0.0426 | J6: 0.0426 | K6: 0.0426 | L6: 0.0426 | M6: 0.0426 | N6: 0.0426 | O6: 0.0426 | P6: 0.0426 | Q6: 0.0426 | R6: 0.0426 | S6: 0.0426 | T6: 0.0426 | U6: 0.0426 | V6: 0.0426 | W6: 0.0426 | X6: 0.0426 | Y6: 0.0426 | Z6: =Y6 -> 0.0426 | AA6: 0.0426 | AB6: 0.0426 | AC6: 0.0426 | AD6: 0.0426 | AE6: 0.0426 | AF6: 0.0426 | AG6: 0.0426
A7: Discount Factor (Yr End) | C7: 1 | D7: =C7/(1+D6) -> 0.95914061 | E7: 0.9199507098 | F7: 0.882362085 | G7: 0.8463093084 | H7: 0.8117296263 | I7: 0.778562849 | J7: 0.7467512459 | K7: 0.7162394455 | L7: 0.6869743387 | M7: 0.6589049863 | N7: 0.6319825305 | O7: 0.6061601098 | P7: 0.5813927775 | Q7: 0.5576374232 | R7: 0.5348526983 | S7: 0.5129989433 | T7: 0.4920381194 | U7: 0.471933742 | V7: 0.4526508172 | W7: 0.4341557809 | X7: 0.4164164406 | Y7: 0.3994019188 | Z7: 0.3830826001 | AA7: 0.3674300787 | AB7: 0.3524171098 | AC7: 0.3380175617 | AD7: 0.3242063703 | AE7: 0.3109594958 | AF7: 0.2982538805 | AG7: 0.2860674089
J10: IMPORTANT NOTE: Values from 2023 Onwards are forecasts and will be determined as part of the Next Price Control. This Model is re-run at each Price Control Period, to calculate allowed Revenues.
C11: 2016 | D11: 2017 | E11: =D11+1 -> 2018 | F11: 2019 | G11: 2020 | H11: 2021 | I11: 2022 | J11: 2023 | K11: 2024 | L11: 2025 | M11: 2026 | N11: 2027 | O11: 2028 | P11: 2029 | Q11: 2030 | R11: 2031 | S11: 2032 | T11: 2033 | U11: 2034 | V11: 2035 | W11: 2036 | X11: 2037 | Y11: =X11+1 -> 2038 | Z11: =Y11+1 -> 2039 | AA11: 2040 | AB11: 2041 | AC11: 2042 | AD11: 2043 | AE11: 2044 | AF11: 2045 | AG11: 2046
A13: Capex | D13: =Inputs!J86/1000 -> 10467.71604 | E13: =Inputs!K86/1000 -> 10926.6304 | F13: =Inputs!L86/1000 -> 15615.35056 | G13: =Inputs!M86/1000 -> 18200.45683 | H13: =Inputs!N86/1000 -> 16827.78619 | I13: =Inputs!O86/1000 -> 16189.08926 | J13: =Inputs!P86/1000 -> 11590.0885 | K13: =Inputs!Q86/1000 -> 10775.87282 | L13: =Inputs!R86/1000 -> 13925.31246 | M13: =Inputs!S86/1000 -> 10981.73057 | N13: =Inputs!T86/1000 -> 9404.661686 | O13: =Inputs!U86/1000 -> 8602.419746 | P13: =Inputs!V86/1000 -> 8315.539422 | Q13: =Inputs!W86/1000 -> 8025.033959 | R13: =Inputs!X86/1000 -> 8079.379024 | S13: =Inputs!Y86/1000 -> 7947.26132 | T13: =Inputs!Z86/1000 -> 7956.984007 | U13: =Inputs!AA86/1000 -> 7670.884804 | V13: =Inputs!AB86/1000 -> 7888.928598 | W13: =Inputs!AC86/1000 -> 7757.015209 | X13: =Inputs!AD86/1000 -> 7470.348874 | Y13: =Inputs!AE86/1000 -> 8219.288125 | Z13: =Inputs!AF86/1000 -> 8669.49542 | AA13: =Inputs!AG86/1000 -> 9434.96491 | AB13: =Inputs!AH86/1000 -> 9848.10731 | AC13: =Inputs!AI86/1000 -> 10173.59132 | AD13: =Inputs!AJ86/1000 -> 9770.673794 | AE13: =Inputs!AK86/1000 -> 9139.134598 | AF13: =Inputs!AL86/1000 -> 9072.348329 | AG13: =Inputs!AM86/1000 -> 9072.348329
A14: Opex | D14: =Inputs!J91/1000 -> 14736.83028 | E14: =Inputs!K91/1000 -> 14421.5281 | F14: =Inputs!L91/1000 -> 14331.29141 | G14: =Inputs!M91/1000 -> 14280.96855 | H14: =Inputs!N91/1000 -> 14179.2965 | I14: =Inputs!O91/1000 -> 14286.36902 | J14: =Inputs!P91/1000 -> 14432.59977 | K14: =Inputs!Q91/1000 -> 14550.30263 | L14: =Inputs!R91/1000 -> 14665.32843 | M14: =Inputs!S91/1000 -> 14774.12559 | N14: =Inputs!T91/1000 -> 14873.44566 | O14: =Inputs!U91/1000 -> 14967.41834 | P14: =Inputs!V91/1000 -> 15010.18189 | Q14: =Inputs!W91/1000 -> 15043.27145 | R14: =Inputs!X91/1000 -> 15066.77879 | S14: =Inputs!Y91/1000 -> 15080.89745 | T14: =Inputs!Z91/1000 -> 15085.8158 | U14: =Inputs!AA91/1000 -> 15087.13773 | V14: =Inputs!AB91/1000 -> 15170.9252 | W14: =Inputs!AC91/1000 -> 15253.57055 | X14: =Inputs!AD91/1000 -> 15334.86146 | Y14: =Inputs!AE91/1000 -> 15414.91586 | Z14: =Inputs!AF91/1000 -> 15493.6245 | AA14: =Inputs!AG91/1000 -> 15571.10502 | AB14: =Inputs!AH91/1000 -> 15647.24841 | AC14: =Inputs!AI91/1000 -> 15721.95709 | AD14: =Inputs!AJ91/1000 -> 15795.23578 | AE14: =Inputs!AK91/1000 -> 15867.30362 | AF14: =Inputs!AL91/1000 -> 15933.47773 | AG14: =Inputs!AM91/1000 -> 16014.82781
A15: Volumes (therms '000) | D15: =SUM(D16:D19) -> 148881.4239 | E15: =SUM(E16:E19) -> 152496.3328 | F15: 156152.5901 | G15: 159871.4654 | H15: 163620.2464 | I15: 167330.9408 | J15: 169256.2941 | K15: 170468.6081 | L15: 170981.6153 | M15: 172175.5696 | N15: 172828.5171 | O15: 173337.4438 | P15: 173713.0277 | Q15: 173957.9922 | R15: 174084.3069 | S15: 174092.6873 | T15: 173985.4591 | U15: 173765.0902 | V15: 173472.0391 | W15: 173145.3412 | X15: 172783.5181 | Y15: 172383.9424 | Z15: 171941.4018 | AA15: 171452.1711 | AB15: 170916.7688 | AC15: 170337.6209 | AD15: 169720.3518 | AE15: 169299.3388 | AF15: 168615.2541 | AG15: 167452.6132
A16: V Dom/Very Small IC Tariff (<2,500 tpa) (P1) | D16: =Inputs!J105/1000 -> 78884.98277 | E16: =Inputs!K105/1000 -> 82121.07688 | F16: =Inputs!L105/1000 -> 85375.12151 | G16: =Inputs!M105/1000 -> 88664.90492 | H16: =Inputs!N105/1000 -> 91966.15682 | I16: =Inputs!O105/1000 -> 95217.09098 | J16: =Inputs!P105/1000 -> 97358.3927 | K16: =Inputs!Q105/1000 -> 98897.33907 | L16: =Inputs!R105/1000 -> 99750.60727 | M16: =Inputs!S105/1000 -> 101408.4939 | N16: =Inputs!T105/1000 -> 102550.3491 | O16: =Inputs!U105/1000 -> 103556.3783 | P16: =Inputs!V105/1000 -> 104435.5565 | Q16: =Inputs!W105/1000 -> 105186.5788 | R16: =Inputs!X105/1000 -> 105819.5067 | S16: =Inputs!Y105/1000 -> 106335.951 | T16: =Inputs!Z105/1000 -> 106738.7309 | U16: =Inputs!AA105/1000 -> 107030.3144 | V16: =Inputs!AB105/1000 -> 107251.16 | W16: =Inputs!AC105/1000 -> 107440.3031 | X16: =Inputs!AD105/1000 -> 107597.0173 | Y16: =Inputs!AE105/1000 -> 107719.3353 | Z16: =Inputs!AF105/1000 -> 107804.241 | AA16: =Inputs!AG105/1000 -> 107849.4928 | AB16: =Inputs!AH105/1000 -> 107855.5417 | AC16: =Inputs!AI105/1000 -> 107824.0222 | AD16: =Inputs!AJ105/1000 -> 107757.8306 | AE16: =Inputs!AK105/1000 -> 107889.3913 | AF16: =Inputs!AL105/1000 -> 107759.3763 | AG16: =Inputs!AM105/1000 -> 107152.3013
A17: V Small/Med Tariff IC (2,500 - 25k tpa) (P2) | D17: =Inputs!J106/1000 -> 21631.04887 | E17: =Inputs!K106/1000 -> 21884.86366 | F17: =Inputs!L106/1000 -> 22162.07632 | G17: =Inputs!M106/1000 -> 22466.16816 | H17: =Inputs!N106/1000 -> 22788.69727 | I17: =Inputs!O106/1000 -> 23123.4575 | J17: =Inputs!P106/1000 -> 23191.80402 | K17: =Inputs!Q106/1000 -> 23151.54991 | L17: =Inputs!R106/1000 -> 23099.75056 | M17: =Inputs!S106/1000 -> 23047.19649 | N17: =Inputs!T106/1000 -> 22969.66712 | O17: =Inputs!U106/1000 -> 22883.94282 | P17: =Inputs!V106/1000 -> 22791.72676 | Q17: =Inputs!W106/1000 -> 22697.04733 | R17: =Inputs!X106/1000 -> 22601.81239 | S17: =Inputs!Y106/1000 -> 22505.12676 | T17: =Inputs!Z106/1000 -> 22406.49686 | U17: =Inputs!AA106/1000 -> 22305.92271 | V17: =Inputs!AB106/1000 -> 22203.4043 | W17: =Inputs!AC106/1000 -> 22098.94163 | X17: =Inputs!AD106/1000 -> 21991.78259 | Y17: =Inputs!AE106/1000 -> 21881.26715 | Z17: =Inputs!AF106/1000 -> 21765.19905 | AA17: =Inputs!AG106/1000 -> 21642.09487 | AB17: =Inputs!AH106/1000 -> 21512.02198 | AC17: =Inputs!AI106/1000 -> 21375.77182 | AD17: =Inputs!AJ106/1000 -> 21236.07258 | AE17: =Inputs!AK106/1000 -> 21094.8772 | AF17: =Inputs!AL106/1000 -> 20952.18569 | AG17: =Inputs!AM106/1000 -> 20807.99805
A18: V Large Tariff (25k tpa - 75k tpa) (P3) | D18: =Inputs!J107/1000 -> 29597.8334 | E18: =Inputs!K107/1000 -> 29722.8334 | F18: =Inputs!L107/1000 -> 29847.8334 | G18: =Inputs!M107/1000 -> 29972.8334 | H18: =Inputs!N107/1000 -> 30097.8334 | I18: =Inputs!O107/1000 -> 30222.8334 | J18: =Inputs!P107/1000 -> 30094.93479 | K18: =Inputs!Q107/1000 -> 29964.95284 | L18: =Inputs!R107/1000 -> 29832.88756 | M18: =Inputs!S107/1000 -> 29577.90562 | N18: =Inputs!T107/1000 -> 29322.92367 | O18: =Inputs!U107/1000 -> 29067.94173 | P18: =Inputs!V107/1000 -> 28812.95978 | Q18: =Inputs!W107/1000 -> 28557.97784 | R18: =Inputs!X107/1000 -> 28302.99589 | S18: =Inputs!Y107/1000 -> 28048.01395 | T18: =Inputs!Z107/1000 -> 27793.032 | U18: =Inputs!AA107/1000 -> 27538.05006 | V18: =Inputs!AB107/1000 -> 27283.06811 | W18: =Inputs!AC107/1000 -> 27028.08617 | X18: =Inputs!AD107/1000 -> 26773.10422 | Y18: =Inputs!AE107/1000 -> 26518.12228 | Z18: =Inputs!AF107/1000 -> 26263.14033 | AA18: =Inputs!AG107/1000 -> 26008.15839 | AB18: =Inputs!AH107/1000 -> 25753.17644 | AC18: =Inputs!AI107/1000 -> 25498.1945 | AD18: =Inputs!AJ107/1000 -> 25243.21255 | AE18: =Inputs!AK107/1000 -> 24988.23061 | AF18: =Inputs!AL107/1000 -> 24733.24866 | AG18: =Inputs!AM107/1000 -> 24478.26672
A19: V Contract IC (>75k tpa) (P4) | D19: =Inputs!J108/1000 -> 18767.55888 | E19: =Inputs!K108/1000 -> 18767.55888 | F19: =Inputs!L108/1000 -> 18767.55888 | G19: =Inputs!M108/1000 -> 18767.55888 | H19: =Inputs!N108/1000 -> 18767.55888 | I19: =Inputs!O108/1000 -> 18767.55888 | J19: =Inputs!P108/1000 -> 18611.16255 | K19: =Inputs!Q108/1000 -> 18454.76623 | L19: =Inputs!R108/1000 -> 18298.36991 | M19: =Inputs!S108/1000 -> 18141.97358 | N19: =Inputs!T108/1000 -> 17985.57726 | O19: =Inputs!U108/1000 -> 17829.18093 | P19: =Inputs!V108/1000 -> 17672.78461 | Q19: =Inputs!W108/1000 -> 17516.38829 | R19: =Inputs!X108/1000 -> 17359.99196 | S19: =Inputs!Y108/1000 -> 17203.59564 | T19: =Inputs!Z108/1000 -> 17047.19931 | U19: =Inputs!AA108/1000 -> 16890.80299 | V19: =Inputs!AB108/1000 -> 16734.40667 | W19: =Inputs!AC108/1000 -> 16578.01034 | X19: =Inputs!AD108/1000 -> 16421.61402 | Y19: =Inputs!AE108/1000 -> 16265.21769 | Z19: =Inputs!AF108/1000 -> 16108.82137 | AA19: =Inputs!AG108/1000 -> 15952.42505 | AB19: =Inputs!AH108/1000 -> 15796.02872 | AC19: =Inputs!AI108/1000 -> 15639.6324 | AD19: =Inputs!AJ108/1000 -> 15483.23607 | AE19: =Inputs!AK108/1000 -> 15326.83975 | AF19: =Inputs!AL108/1000 -> 15170.44343 | AG19: =Inputs!AM108/1000 -> 15014.0471
A20: £/therm | D20: 0.368097982
A21: P Dom/Very Small IC Tariff (<2,500 tpa) (P1) | C21: 1 | D21: 0.3950714896 | E21: =D21 -> 0.3950714896 | F21: =E21 -> 0.3950714896 | G21: 0.3950714896 | H21: 0.3950714896 | I21: 0.3950714896 | J21: 0.3950714896 | K21: 0.3950714896 | L21: 0.3950714896 | M21: 0.3950714896 | N21: 0.3950714896 | O21: 0.3950714896 | P21: 0.3950714896 | Q21: 0.3950714896 | R21: 0.3950714896 | S21: 0.3950714896 | T21: 0.3950714896 | U21: 0.3950714896 | V21: 0.3950714896 | W21: 0.3950714896 | X21: 0.3950714896 | Y21: 0.3950714896 | Z21: 0.3950714896 | AA21: 0.3950714896 | AB21: 0.3950714896 | AC21: 0.3950714896 | AD21: 0.3950714896 | AE21: 0.3950714896 | AF21: 0.3950714896 | AG21: 0.3950714896
A22: P Small/Med Tariff IC (2,500 - 25k tpa) (P2) | C22: 0.9 | D22: =$D$21*C22 -> 0.3555643407 | E22: =D22 -> 0.3555643407 | F22: 0.3555643407 | G22: 0.3555643407 | H22: 0.3555643407 | I22: 0.3555643407 | J22: 0.3555643407 | K22: 0.3555643407 | L22: 0.3555643407 | M22: 0.3555643407 | N22: 0.3555643407 | O22: 0.3555643407 | P22: 0.3555643407 | Q22: 0.3555643407 | R22: 0.3555643407 | S22: 0.3555643407 | T22: 0.3555643407 | U22: 0.3555643407 | V22: 0.3555643407 | W22: 0.3555643407 | X22: 0.3555643407 | Y22: 0.3555643407 | Z22: 0.3555643407 | AA22: 0.3555643407 | AB22: 0.3555643407 | AC22: 0.3555643407 | AD22: 0.3555643407 | AE22: 0.3555643407 | AF22: 0.3555643407 | AG22: 0.3555643407
A23: P Large Tariff (25k tpa - 75k tpa) (P3) | C23: 0.8477976935 | D23: =$D$21*C23 -> 0.3349406977 | E23: =D23 -> 0.3349406977 | F23: 0.3349406977 | G23: 0.3349406977 | H23: 0.3349406977 | I23: 0.3349406977 | J23: 0.3349406977 | K23: 0.3349406977 | L23: 0.3349406977 | M23: 0.3349406977 | N23: 0.3349406977 | O23: 0.3349406977 | P23: 0.3349406977 | Q23: 0.3349406977 | R23: 0.3349406977 | S23: 0.3349406977 | T23: 0.3349406977 | U23: 0.3349406977 | V23: 0.3349406977 | W23: 0.3349406977 | X23: 0.3349406977 | Y23: 0.3349406977 | Z23: 0.3349406977 | AA23: 0.3349406977 | AB23: 0.3349406977 | AC23: 0.3349406977 | AD23: 0.3349406977 | AE23: 0.3349406977 | AF23: 0.3349406977 | AG23: 0.3349406977
A24: P Contract IC (>75k tpa) (P4) | C24: 0.4264994532 | D24: =$D$21*C24 -> 0.1684977743 | E24: =D24 -> 0.1684977743 | F24: 0.1684977743 | G24: 0.1684977743 | H24: 0.1684977743 | I24: 0.1684977743 | J24: 0.1684977743 | K24: 0.1684977743 | L24: 0.1684977743 | M24: 0.1684977743 | N24: 0.1684977743 | O24: 0.1684977743 | P24: 0.1684977743 | Q24: 0.1684977743 | R24: 0.1684977743 | S24: 0.1684977743 | T24: 0.1684977743 | U24: 0.1684977743 | V24: 0.1684977743 | W24: 0.1684977743 | X24: 0.1684977743 | Y24: 0.1684977743 | Z24: 0.1684977743 | AA24: 0.1684977743 | AB24: 0.1684977743 | AC24: 0.1684977743 | AD24: 0.1684977743 | AE24: 0.1684977743 | AF24: 0.1684977743 | AG24: 0.1684977743
A26: Conditions 2.3.15 and 2.3.16 Establishing Best Available Revenue Per Therm and Calculating Cashflow
A28: Allowed Revenue | D28: =SUMPRODUCT(D16:D19,D21:D24) -> 51932.24815 | E28: =SUMPRODUCT(E16:E19,E21:E24) -> 53342.85175 | F28: 54768.86653 | G28: 56218.55796 | H28: 57679.33591 | I28: 59124.5837 | J28: 59925.66166 | K28: 60449.45389 | L28: 60697.55136 | M28: 61222.0925 | N28: 61533.88396 | O28: 61789.10066 | P28: 61991.89391 | Q28: 62143.1805 | R28: 62247.61385 | S28: 62305.51205 | T28: 62317.81338 | U28: 62285.49287 | V28: 62224.53452 | W28: 62150.36008 | X28: 62062.4152 | Y28: 61959.68795 | Z28: 61840.20583 | AA28: 61702.55581 | AB28: 61546.94 | AC28: 61374.28558 | AD28: 61186.70683 | AE28: 61076.7224 | AF28: 60862.86494 | AG28: 60460.00266
A29: Capex | D29: =-D13 -> -10467.71604 | E29: -10926.6304 | F29: -15615.35056 | G29: -18200.45683 | H29: -16827.78619 | I29: -16189.08926 | J29: -11590.0885 | K29: -10775.87282 | L29: -13925.31246 | M29: -10981.73057 | N29: -9404.661686 | O29: -8602.419746 | P29: -8315.539422 | Q29: -8025.033959 | R29: -8079.379024 | S29: -7947.26132 | T29: -7956.984007 | U29: -7670.884804 | V29: -7888.928598 | W29: -7757.015209 | X29: -7470.348874 | Y29: -8219.288125 | Z29: =-Z13 -> -8669.49542 | AA29: -9434.96491 | AB29: -9848.10731 | AC29: -10173.59132 | AD29: -9770.673794 | AE29: -9139.134598 | AF29: -9072.348329 | AG29: -9072.348329
A30: Opex | D30: =-D14 -> -14736.83028 | E30: -14421.5281 | F30: -14331.29141 | G30: -14280.96855 | H30: -14179.2965 | I30: -14286.36902 | J30: -14432.59977 | K30: -14550.30263 | L30: -14665.32843 | M30: -14774.12559 | N30: -14873.44566 | O30: -14967.41834 | P30: -15010.18189 | Q30: -15043.27145 | R30: -15066.77879 | S30: -15080.89745 | T30: -15085.8158 | U30: -15087.13773 | V30: -15170.9252 | W30: -15253.57055 | X30: -15334.86146 | Y30: -15414.91586 | Z30: =-Z14 -> -15493.6245 | AA30: -15571.10502 | AB30: -15647.24841 | AC30: -15721.95709 | AD30: -15795.23578 | AE30: -15867.30362 | AF30: -15933.47773 | AG30: -16014.82781
A31: Capex Creditor | D31: =-(Inputs!J118-Inputs!I118)/1000 -> -436.6516771 | E31: =-(Inputs!K118-Inputs!J118)/1000 -> 76.48572624 | F31: =-(Inputs!L118-Inputs!K118)/1000 -> 781.4533611 | G31: =-(Inputs!M118-Inputs!L118)/1000 -> 430.8510441 | H31: =-(Inputs!N118-Inputs!M118)/1000 -> -228.7784393 | I31: =-(Inputs!O118-Inputs!N118)/1000 -> -106.4494885 | J31: =-(Inputs!P118-Inputs!O118)/1000 -> -766.5001273 | K31: =-(Inputs!Q118-Inputs!P118)/1000 -> -135.7026128 | L31: =-(Inputs!R118-Inputs!Q118)/1000 -> 524.9066073 | M31: =-(Inputs!S118-Inputs!R118)/1000 -> -490.5969823 | N31: =-(Inputs!T118-Inputs!S118)/1000 -> -262.8448141 | O31: =-(Inputs!U118-Inputs!T118)/1000 -> -133.7069899 | P31: =-(Inputs!V118-Inputs!U118)/1000 -> -47.81338739 | Q31: =-(Inputs!W118-Inputs!V118)/1000 -> -48.41757714 | R31: =-(Inputs!X118-Inputs!W118)/1000 -> 9.057510847 | S31: =-(Inputs!Y118-Inputs!X118)/1000 -> -22.01961742 | T31: =-(Inputs!Z118-Inputs!Y118)/1000 -> 1.620447873 | U31: =-(Inputs!AA118-Inputs!Z118)/1000 -> -47.68320055 | V31: =-(Inputs!AB118-Inputs!AA118)/1000 -> 36.34063244 | W31: =-(Inputs!AC118-Inputs!AB118)/1000 -> -21.98556499 | X31: =-(Inputs!AD118-Inputs!AC118)/1000 -> -47.77772237 | Y31: =-(Inputs!AE118-Inputs!AD118)/1000 -> 124.8232084 | Z31: =-(Inputs!AF118-Inputs!AE118)/1000 -> 75.03454932 | AA31: =-(Inputs!AG118-Inputs!AF118)/1000 -> 127.5782483 | AB31: =-(Inputs!AH118-Inputs!AG118)/1000 -> 68.85706653 | AC31: =-(Inputs!AI118-Inputs!AH118)/1000 -> 54.24733575 | AD31: =-(Inputs!AJ118-Inputs!AI118)/1000 -> -67.15292174 | AE31: =-(Inputs!AK118-Inputs!AJ118)/1000 -> -105.2565326 | AF31: =-(Inputs!AL118-Inputs!AK118)/1000 -> -11.13104487 | AG31: =-(Inputs!AM118-Inputs!AL118)/1000 -> 0
A32: Working Capital Adjustment | D32: =-(Inputs!J116-Inputs!I116)/1000 -> -395.2683589 | E32: =-(Inputs!K116-Inputs!J116)/1000 -> -249.4268012 | F32: =-(Inputs!L116-Inputs!K116)/1000 -> -224.7306201 | G32: =-(Inputs!M116-Inputs!L116)/1000 -> -223.4924581 | H32: =-(Inputs!N116-Inputs!M116)/1000 -> -231.3173381 | I32: =-(Inputs!O116-Inputs!N116)/1000 -> -203.9384663 | J32: =-(Inputs!P116-Inputs!O116)/1000 -> -102.614005 | K32: =-(Inputs!Q116-Inputs!P116)/1000 -> -64.44449115 | L32: =-(Inputs!R116-Inputs!Q116)/1000 -> -23.41152405 | M32: =-(Inputs!S116-Inputs!R116)/1000 -> -65.62551144 | N32: =-(Inputs!T116-Inputs!S116)/1000 -> -34.8503121 | O32: =-(Inputs!U116-Inputs!T116)/1000 -> -27.00578228 | P32: =-(Inputs!V116-Inputs!U116)/1000 -> -25.28736098 | Q32: =-(Inputs!W116-Inputs!V116)/1000 -> -18.72224199 | R32: =-(Inputs!X116-Inputs!W116)/1000 -> -12.84412162 | S32: =-(Inputs!Y116-Inputs!X116)/1000 -> -6.990491804 | T32: =-(Inputs!Z116-Inputs!Y116)/1000 -> -1.254996121 | U32: =-(Inputs!AA116-Inputs!Z116)/1000 -> 5.006707118 | V32: =-(Inputs!AB116-Inputs!AA116)/1000 -> 19.19824885 | W32: =-(Inputs!AC116-Inputs!AB116)/1000 -> 21.04360856 | X32: =-(Inputs!AD116-Inputs!AC116)/1000 -> 22.94664206 | Y32: =-(Inputs!AE116-Inputs!AD116)/1000 -> 25.01561468 | Z32: =-(Inputs!AF116-Inputs!AE116)/1000 -> 27.36735543 | AA32: =-(Inputs!AG116-Inputs!AF116)/1000 -> 29.94516499 | AB32: =-(Inputs!AH116-Inputs!AG116)/1000 -> 32.47957856 | AC32: =-(Inputs!AI116-Inputs!AH116)/1000 -> 34.863205 | AD32: =-(Inputs!AJ116-Inputs!AI116)/1000 -> 36.93025493 | AE32: =-(Inputs!AK116-Inputs!AJ116)/1000 -> 25.1458049 | AF32: =-(Inputs!AL116-Inputs!AK116)/1000 -> 40.01951271 | AG32: =-(Inputs!AM116-Inputs!AL116)/1000 -> 70.19135076
A33: Allowed Capex Overspend | D33: =-'Opening Values'!H29 -> 0 | E33: =-'Opening Values'!I29 -> 0 | F33: =-'Opening Values'!J29 -> -113.6807187 | G33: =-'Opening Values'!K29 -> -764.1822918 | H33: =-'Opening Values'!L29 -> -1364.139435
A35: Cashflows | D35: =SUM(D28:D34) -> 25895.78179 | E35: =SUM(E28:E34) -> 27821.75217 | F35: 25265.26658 | G35: 23180.30888 | H35: 24848.018 | I35: 28338.73746 | J35: 33033.85927 | K35: 34923.13134 | L35: 32608.40555 | M35: 34910.01384 | N35: 36958.0815 | O35: 38058.5498 | P35: 38593.07185 | Q35: 39007.73527 | R35: 39097.66943 | S35: 39248.34318 | T35: 39275.37902 | U35: 39484.79385 | V35: 39220.21961 | W35: 39138.83237 | X35: 39232.37378 | Y35: 38475.32279 | Z35: 37779.48781 | AA35: 36854.00929 | AB35: 36152.92092 | AC35: 35567.8477 | AD35: 35590.57459 | AE35: 35990.17345 | AF35: 35885.92735 | AG35: 35443.01788
A39: Discounted Cashflow | C39: =SUM(D39:AG39) -> 562082.1525 | D39: =D35*D7 -> 24837.69595 | E39: 25594.64066 | F39: 22293.11329 | G39: 19617.71117 | H39: 20169.87237 | I39: 22063.48818 | J39: 24668.07556 | K39: 25013.32423 | L39: 22401.13784 | M39: 23002.38219 | N39: 23356.86187 | O39: 23069.57473 | P39: 22437.73323 | Q39: =Q35*Q7 -> 21752.17298 | R39: 20911.49399 | S39: 20134.35858 | T39: 19324.98363 | U39: 18634.20651 | V39: 17753.06446 | W39: 16992.35033 | X39: 16337.00545 | Y39: 15367.11775 | Z39: 14472.66442 | AA39: 13541.27154 | AB39: 12740.9079 | AC39: 12022.55716 | AD39: 11538.691 | AE39: 11191.48619 | AF39: 10703.11709 | AG39: 10139.09229
A43: Closing DAV | D43: =DAV!J37 -> 421863.7182 | E43: =DAV!K37 -> 426373.0631 | F43: =DAV!L37 -> 427188.8144 | G43: =DAV!M37 -> 400858.0914 | H43: =DAV!N37 -> 401760.1297 | I43: =DAV!O37 -> 400018.7292 | J43: =DAV!P37 -> 393148.9411 | K43: =DAV!Q37 -> 384980.3238 | L43: =DAV!R37 -> 379399.1489 | M43: =DAV!S37 -> 370418.4892 | N43: =DAV!T37 -> 359601.7952 | O43: =DAV!U37 -> 347777.9754 | P43: =DAV!V37 -> 335485.0381 | Q43: =DAV!W37 -> 322714.5682 | R43: =DAV!X37 -> 309790.1226 | S43: =DAV!Y37 -> 296590.7837 | T43: =DAV!Z37 -> 283289.7038 | U43: =DAV!AA37 -> 269625.9216 | V43: =DAV!AB37 -> 256126.5101 | W43: =DAV!AC37 -> 242472.7001 | X43: =DAV!AD37 -> 228572.6367 | Y43: =DAV!AE37 -> 215444.7301 | Z43: =DAV!AF37 -> 202692.2973 | AA43: =DAV!AG37 -> 190595.0955 | AB43: =DAV!AH37 -> 178693.4565 | AC43: =DAV!AI37 -> 166873.8747 | AD43: =DAV!AJ37 -> 154394.1631 | AE43: =DAV!AK37 -> 141095.9411 | AF43: =DAV!AL37 -> 127510.2085 | AG43: =DAV!AM37 -> 125788.9221
A47: TRV | C47: =-'Opening Values'!D20 -> -595825.2363
A48: Discounted DAV2046 | C48: =AG43*AG7 -> 35984.11101
A49: Discounted Capital Creditors (CC2046) | C49: =Inputs!AM118/1000*'Pi''s Calc'!AG7 -> -1646.757247
A50: Discounted Working Capital Adjustment (Q2046) | C50: =Inputs!AM116/1000*'Pi''s Calc'!AG7 -> -594.27004
A51: Backsolve to 0 by running Macro Ctrl + q | C51: =SUM(C39:C50) -> 9.913492249e-11
A55: Condition 2.3.18 Calculating TRV
B57: Total Regulatory Value (TRV) | I57: =I67+I69+I71+I73 -> 592436.0702 | N57: =N67+N69+N71+N73 -> 542431.0268 | S57: =S67+S69+S71+S73 -> 457119.0691 | X57: =X67+X69+X71+X73 -> 349313.7515 | AC57: =AC67+AC69+AC71+AC73 -> 228732.1105 | AG57: =AG67+AG69+AG71+AG73 -> 117955.0088
A61: Condition 2.3.19 Calculating Profile Adjustment
I62: x | N62: x | S62: x | X62: x | AC62: x | AG62: x
B63: Adjusted Cashflows | D63: =D35*(1+$I$6)^($I$11-D11) -> 31901.97937 | E63: 32874.21265 | F63: 28633.67206 | G63: 25197.33789 | H63: 25906.54357 | I63: 28338.73746 | J63: =J35*(1+$N$6)^($N$11-J11) -> 39032.84407 | K63: =K35*(1+$N$6)^($N$11-K11) -> 39579.1387 | L63: =L35*(1+$N$6)^($N$11-L11) -> 35445.81813 | M63: =M35*(1+$N$6)^($N$11-M11) -> 36397.18043 | N63: =N35*(1+$N$6)^($N$11-N11) -> 36958.0815 | O63: =O35*(1+$S$6)^($S$11-O11) -> 44970.02387 | P63: =P35*(1+$S$6)^($S$11-P11) -> 43738.3615 | Q63: =Q35*(1+$S$6)^($S$11-Q11) -> 42401.984 | R63: =R35*(1+$S$6)^($S$11-R11) -> 40763.23014 | S63: =S35*(1+$S$6)^($S$11-S11) -> 39248.34318 | T63: =T35*(1+$X$6)^($X$11-T11) -> 46407.8306 | U63: =U35*(1+$X$6)^($X$11-U11) -> 44748.9693 | V63: =V35*(1+$X$6)^($X$11-V11) -> 42632.95761 | W63: =W35*(1+$X$6)^($X$11-W11) -> 40806.14663 | X63: =X35*(1+$X$6)^($X$11-X11) -> 39232.37378 | Y63: =Y35*(1+$AC$6)^($AC$11-Y11) -> 45462.48329 | Z63: =Z35*(1+$AC$6)^($AC$11-Z11) -> 42816.30915 | AA63: =AA35*(1+$AC$6)^($AC$11-AA11) -> 40060.85207 | AB63: =AB35*(1+$AC$6)^($AC$11-AB11) -> 37693.03535 | AC63: =AC35*(1+$AC$6)^($AC$11-AC11) -> 35567.8477 | AD63: =AD35*(1+$AG$6)^($AG$11-AD11) -> 40335.56654 | AE63: =AE35*(1+$AG$6)^($AG$11-AE11) -> 39121.84976 | AF63: =AF35*(1+AG6)^(AG11-AF11) -> 37414.66785 | AG63: =AG35*(1+AG6)^(AG11-AG11) -> 35443.01788
B65: Closing TRV (Incl Return) | C65: ='Opening Values'!D20 -> 595825.2363 | I65: =-$C$65*(1+I6)^(I11-C11) -> -765288.5532 | N65: =-I57*(1+N6)^(N11-I11) -> -729844.0897 | S65: =-N57*(1+S6)^(S11-N11) -> -668241.0118 | X65: =-S57*(1+X6)^(X11-S11) -> -563142.0294 | AC65: =-X57*(1+AC6)^(AC11-X11) -> -430332.6381 | AG65: =-AC57*(1+AG6)^(AG11-AC11) -> -270270.1108
B67: DAV | I67: =I43 -> 400018.7292 | N67: =N43 -> 359601.7952 | S67: =S43 -> 296590.7837 | X67: =X43 -> 228572.6367 | AC67: =AC43 -> 166873.8747 | AG67: =AG43 -> 125788.9221
B69: CC | I69: =Inputs!O118/1000 -> -6942.659171 | N69: =Inputs!T118/1000 -> -5811.921241 | S69: =Inputs!Y118/1000 -> -5569.02118 | X69: =Inputs!AD118/1000 -> -5489.535773 | AC69: =Inputs!AI118/1000 -> -5940.076181 | AG69: =Inputs!AM118/1000 -> -5756.535682
B71: Q | I71: =Inputs!O116/1000 -> -2070.275434 | N71: =Inputs!T116/1000 -> -1779.329591 | S71: =Inputs!Y116/1000 -> -1688.479592 | X71: =Inputs!AD116/1000 -> -1755.419803 | AC71: =Inputs!AI116/1000 -> -1905.090721 | AG71: =Inputs!AM116/1000 -> -2077.377644
B73: Calculated PA | I73: =-SUM(D63:I71) -> 201430.2756 | N73: =-SUM(J63:N72) -> 190420.4825 | S73: =-SUM(O63:S72) -> 167785.7862 | X73: =-SUM(T63:X72) -> 127986.0704 | AC73: =-SUM(Y63:AC72) -> 69703.40279 | AG73: =-SUM(AD63:AG72) -> -1.264197635e-10
B74: Check | I74: =SUM(D63:I73) -> 0 | N74: =SUM(J63:N73) -> 0 | S74: =SUM(O63:S73) -> 0 | X74: =SUM(T63:X73) -> 0 | AC74: =SUM(Y63:AC73) -> 0 | AG74: =SUM(AD63:AG73) -> 0
B79: ANNUAL BASIS
B80: Cashflow | D80: ='Building Block'!C11 -> 25895.78179 | E80: ='Building Block'!D11 -> 54820.69427 | F80: ='Building Block'!E11 -> 82421.32243 | G80: ='Building Block'!F11 -> 109112.7796 | H80: ='Building Block'!G11 -> 138609.0021 | I80: ='Building Block'!H11 -> 172852.483
B81: Opening TRV incl. return | D81: =-$C65/D$7 -> -621207.3913 | E81: -647670.8262 | F81: -675261.6034 | G81: -704027.7477 | H81: -734019.3297 | I81: -765288.5532
B82: DAV | C82: =DAV!I37 -> 407140.6755 | D82: =+D43 -> 421863.7182 | E82: 426373.0631 | F82: 427188.8144 | G82: 400858.0914 | H82: 401760.1297 | I82: 400018.7292
B83: Q | C83: =Inputs!I116/1000 -> -3598.449477 | D83: =+Inputs!J116/1000 -> -3203.181118 | E83: =+Inputs!K116/1000 -> -2953.754317 | F83: =+Inputs!L116/1000 -> -2729.023697 | G83: =+Inputs!M116/1000 -> -2505.531239 | H83: =+Inputs!N116/1000 -> -2274.213901 | I83: =+Inputs!O116/1000 -> -2070.275434
B84: CC | C84: =Inputs!I118/1000 -> -6425.748644 | D84: =+Inputs!J118/1000 -> -5989.096967 | E84: =+Inputs!K118/1000 -> -6065.582693 | F84: =+Inputs!L118/1000 -> -6847.036054 | G84: =+Inputs!M118/1000 -> -7277.887098 | H84: =+Inputs!N118/1000 -> -7049.108659 | I84: =+Inputs!O118/1000 -> -6942.659171
B85: PA | C85: =+C87-C82-C84-C83 -> 198708.7588 | D85: =-SUM(D80:D84)+D90 -> 201643.8154 | E85: =-SUM(E80:E84)+E90 -> 203306.9693 | F85: 203959.7885 | G85: =-SUM(G80:G84) -> 203840.295 | H85: 202973.5205 | I85: 201430.2756
B87: TRV | C87: =+C65 -> 595825.2363 | D87: =SUM(D82:D85) -> 614315.2556 | E87: =SUM(E82:E85) -> 620660.6953 | F87: 621572.5431 | G87: 594914.9681 | H87: 595410.3277 | I87: 592436.0702
B90: East Down Adjustment | D90: ='PDP Workings - FD'!C22/1000 -> 19003.64603 | E90: ='PDP Workings - FD'!D22/1000 -> 27810.56342 | F90: ='PDP Workings - FD'!E22/1000 -> 28732.26214 | G90: ='PDP Workings - FD'!F22/1000 -> 28732.26214 | H90: =Inputs!N83/1000 -> 0 | I90: =Inputs!O83/1000 -> 0
B93: PA movement | D93: =D85-C85 -> 2935.05657 | E93: =E85-D85 -> 1663.153846 | F93: 652.8192512 | G93: -119.4934868 | H93: -866.774516 | I93: -1543.244864

Sheet PNGL Financeability
A1: PNGL: GD17 Financeability
H4: 2014 | I4: 2015 | J4: 2016 | K4: 2017 | L4: 2018 | M4: 2019 | N4: 2020 | O4: 2021 | P4: 2022 | AB4: Generic assumptions
B5: Financeability analysis (nominal) | AB5: Rolling incentive period | AD5: 5
H6: 256 | I6: 258.5 | J6: =+'PNGL Financeability'!AD6 -> 0.0307 | K6: =+'PNGL Financeability'!AD6 -> 0.0307 | L6: =+K6 -> 0.0307 | M6: 0.0307 | N6: 0.0307 | O6: 0.0307 | P6: 0.0307 | AB6: Forward inflation rate | AD6: 0.0307
B7: RPI factor | H7: 1 | I7: =+I6/H6 -> 1.009765625 | J7: =I7*(1+J6) -> 1.04076543 | K7: 1.072716928 | L7: 1.105649338 | M7: 1.139592773 | N7: 1.174578271 | O7: 1.210637824 | P7: 1.247804405 | AB7: Prospective tax rate | AD7: 0.2
AB8: Year dividends can start | AD8: 2017
B9: Revenues | K9: =+'Pi''s Calc'!D28*'PNGL Financeability'!K7 -> 55708.60172 | L9: =+'Pi''s Calc'!E28*'PNGL Financeability'!L7 -> 58978.48872 | M9: =+'Pi''s Calc'!F28*'PNGL Financeability'!M7 -> 62414.20447 | N9: =+'Pi''s Calc'!G28*'PNGL Financeability'!N7 -> 66033.0966 | O9: =+'Pi''s Calc'!H28*'PNGL Financeability'!O7 -> 69828.7857 | P9: =+'Pi''s Calc'!I28*'PNGL Financeability'!P7 -> 73775.91598 | Q9: Revenues | R9: 52618183.63 | S9: 55813248.55 | T9: 59108458.44 | U9: 62542587.29 | V9: 66075856.51 | W9: 69708040.1 | AB9: Maximum dividend payout 2017 on | AD9: 0.0528
B10: Opex | K10: =+'Pi''s Calc'!D30*'PNGL Financeability'!K7 -> -15808.44731 | L10: =+'Pi''s Calc'!E30*'PNGL Financeability'!L7 -> -15945.153 | M10: =+'Pi''s Calc'!F30*'PNGL Financeability'!M7 -> -16331.83612 | N10: =+'Pi''s Calc'!G30*'PNGL Financeability'!N7 -> -16774.11535 | O10: =+'Pi''s Calc'!H30*'PNGL Financeability'!O7 -> -17165.99266 | P10: =+'Pi''s Calc'!I30*'PNGL Financeability'!P7 -> -17826.59419 | Q10: Opex | R10: -15198105.89 | S10: -15691245.31 | T10: -16061569.2 | U10: -16441907.75 | V10: -16839177.41 | W10: -17384933.05 | AB10: CAs as % of core depreciation | AD10: 0.8
B11: Movements in working capital | K11: =('Pi''s Calc'!D31+'Pi''s Calc'!D32)*K7 -> -892.4147057 | L11: =('Pi''s Calc'!E31+'Pi''s Calc'!E32)*L7 -> -191.212185 | M11: =('Pi''s Calc'!F31+'Pi''s Calc'!F32)*M7 -> 634.4372121 | N11: =('Pi''s Calc'!G31+'Pi''s Calc'!G32)*N7 -> 243.5588894 | O11: =('Pi''s Calc'!H31+'Pi''s Calc'!H32)*O7 -> -557.0093506 | P11: =('Pi''s Calc'!I31+'Pi''s Calc'!I32)*P7 -> -387.3034573 | Q11: Movements in working capital | R11: -123521.3262 | S11: 128927.0026 | T11: -134622.1495 | U11: 47349.41448 | V11: -408370.1597 | W11: -125248.904 | AB11: Threshold PMICR | AD11: 1.4
B12: Core asset depreciation | K12: =-(DAV!J35)*K7 -> -15820.77186 | L12: =-(DAV!K35)*L7 -> -16832.62989 | M12: =-(DAV!L35)*M7 -> -18045.42734 | N12: =-(DAV!M35)*N7 -> -19454.6573 | O12: =-(DAV!N35)*O7 -> -20931.79148 | P12: =-(DAV!O35)*P7 -> -22373.74422 | Q12: Core asset depreciation | R12: -12359889.82 | S12: -13583851.11 | T12: -14655177.29 | U12: -14945911.78 | V12: -16201517.4 | W12: -17440823.09
B13: Unspent allowance depreciation | Q13: Unspent allowance depreciation | R13: -2190550.276 | S13: -2258019.225 | T13: -2327566.217 | U13: -2399255.256 | V13: -2473152.318 | W13: -2549325.41
B14: Profile adjustment | K14: ='Pi''s Calc'!D93*'PNGL Financeability'!K7 -> 3148.484868 | L14: ='Pi''s Calc'!E93*'PNGL Financeability'!L7 -> 1838.864949 | M14: ='Pi''s Calc'!F93*'PNGL Financeability'!M7 -> 743.9481006 | N14: ='Pi''s Calc'!G93*'PNGL Financeability'!N7 -> -140.3544531 | O14: ='Pi''s Calc'!H93*'PNGL Financeability'!O7 -> -1049.350014 | P14: ='Pi''s Calc'!I93*'PNGL Financeability'!P7 -> -1925.66774 | Q14: Profile adjustment | R14: 5215157.819 | S14: 4835287.125 | T14: 4145457.869 | U14: 2566175.966 | V14: 1951071.976 | W14: 1340290.55
B15: Tax (prior year) | K15: =-K44 -> 0 | L15: =-L44 -> 0 | M15: 0 | N15: 0 | O15: -2408.946674 | P15: -2725.301714 | Q15: Tax (prior year) | R15: 0 | S15: 0 | T15: 0 | U15: 0 | V15: -2708265.787 | W15: -3055600.834 | AB15: Outturn and financial assumptions | AD15: PNGL
B16: Post-maintenance FFO | K16: =SUM(K9:K15) -> 26335.45271 | L16: 27848.3586 | M16: 29415.32633 | N16: 29907.52839 | O16: 27715.69553 | P16: 28537.30465 | Q16: Post-maintenance FFO | R16: =SUM(R9:R15) -> 27961274.15 | S16: 29244347.04 | T16: 30074981.46 | U16: 31369037.89 | V16: 29396445.4 | W16: 30492399.36 | AB16: Initial debt as % of TRV | AD16: 0.55
AB17: Nominal interest rate | AD17: 0.055
B18: PMICR | K18: =K16/K46 -> 1.4 | L18: 1.462996504 | M18: 1.510174317 | N18: 1.500640227 | O18: 1.393716885 | P18: 1.411250761 | AB18: Year tax payments start | AD18: 2020 | AE18: note: to reflect approximate time when tax losses are fully utilised
B20: Maximum interest consistent with dividends | K20: =K16/'PNGL Financeability'!$AD$11 -> 18811.03765 | L20: =L16/'PNGL Financeability'!$AD$11 -> 19891.68472 | M20: =M16/'PNGL Financeability'!$AD$11 -> 21010.94738 | N20: =N16/'PNGL Financeability'!$AD$11 -> 21362.52028 | O20: =O16/'PNGL Financeability'!$AD$11 -> 19796.92538 | P20: =P16/'PNGL Financeability'!$AD$11 -> 20383.78904
B21: Implied maximum debt level (pre interest) | K21: =2*K20/IntPNGL-K39 -> 332504.2332 | L21: 372018.7188 | M21: 404127.2803 | N21: 408953.4442 | O21: 343102.1575 | P21: 374994.9822
B23: Tax
B24: Revenues | K24: =K9 -> 55708.60172 | L24: 58978.48872 | M24: 62414.20447 | N24: 66033.0966 | O24: 69828.7857 | P24: 73775.91598 | Q24: Revenues | R24: 52618183.63 | S24: 55813248.55 | T24: 59108458.44 | U24: 62542587.29 | V24: 66075856.51 | W24: 69708040.1
B25: Opex | K25: =+K10 -> -15808.44731 | L25: -15945.153 | M25: -16331.83612 | N25: -16774.11535 | O25: -17165.99266 | P25: -17826.59419 | Q25: Opex | R25: -15198105.89 | S25: -15691245.31 | T25: -16061569.2 | U25: -16441907.75 | V25: -16839177.41 | W25: -17384933.05
B26: Interest | K26: =-K46 -> -18811.03765 | L26: =-L46 -> -19035.15048 | M26: -19478.09998 | N26: -19929.84585 | O26: -19886.17331 | P26: -20221.28558 | Q26: Interest | R26: -19138481.63 | S26: -19652879.83 | T26: -20151782.7 | U26: -20602621.18 | V26: -20997461 | W26: -21375446.93
B27: Capital allowances | K27: =K12*'PNGL Financeability'!$AD$10 -> -12656.61749 | L27: =L12*'PNGL Financeability'!$AD$10 -> -13466.10391 | M27: =M12*'PNGL Financeability'!$AD$10 -> -14436.34187 | N27: =N12*'PNGL Financeability'!$AD$10 -> -15563.72584 | O27: =O12*'PNGL Financeability'!$AD$10 -> -16745.43318 | P27: =P12*'PNGL Financeability'!$AD$10 -> -17898.99538 | Q27: Capital allowances | R27: -9887911.853 | S27: -10867080.88 | T27: -11724141.83 | U27: =U12*0.8 -> -11956729.42 | V27: -12961213.92 | W27: -13952658.47
B28: Losses | K28: =IF(K4<TaxYearPNGL,-SUM(K24:K27),0) -> -8432.499269 | L28: -10532.08134 | M28: -12167.9265 | N28: 0 | O28: 0 | P28: 0 | Q28: Losses | R28: =IF(K4<TaxYearPNGL,-SUM(R24:R27),0) -> -8393684.26 | S28: -9602042.524 | T28: -11170964.72 | U28: 0 | V28: 0 | W28: 0
B29: Taxable profits | K29: =SUM(K24:K28) -> 0 | L29: =SUM(L24:L28) -> 0 | M29: 0 | N29: 13765.40956 | O29: 16031.18655 | P29: 17829.04083 | Q29: Taxable profits | R29: 0 | S29: 0 | T29: 0 | U29: 13541328.94 | V29: 15278004.17 | W29: 16995001.65
B30: Tax payable | K30: =K29*K65 -> 0 | L30: 0 | M30: 0 | N30: 2408.946674 | O30: 2725.301714 | P30: 3030.936941 | Q30: Tax payable | R30: 0 | S30: 0 | T30: 0 | U30: 2708265.787 | V30: 3055600.834 | W30: 3399000.329
B32: Dividends
B33: Maximum dividend payout (% of initial equity) | K33: =+'PNGL Financeability'!AD9 -> 0.0528
B34: Allowed dividend in year | K34: =(+K51-K39)*K33 -> 15186.24718 | L34: =+K34*(1+L6) -> 15652.46497 | M34: =+L34*(1+M6) -> 16132.99564 | N34: =+M34*(1+N6) -> 16628.27861 | O34: =+N34*(1+O6) -> 17138.76676 | P34: =+O34*(1+P6) -> 17664.9269
B35: Dividend available | K35: =K34+(J35-J36)*(1+'PNGL Financeability'!$AD$6)*(1+$K$33) -> 15186.24718 | L35: =L34+(K35-K36)*(1+'PNGL Financeability'!$AD$6)*(1+$K$33) -> 20700.27463 | M35: =M34+(L35-L36)*(1+'PNGL Financeability'!$AD$6)*(1+$K$33) -> 16132.99564 | N35: =N34+(M35-M36)*(1+'PNGL Financeability'!$AD$6)*(1+$K$33) -> 16628.27861 | O35: =O34+(N35-N36)*(1+'PNGL Financeability'!$AD$6)*(1+$K$33) -> 17138.76676 | P35: =P34+(O35-O36)*(1+'PNGL Financeability'!$AD$6)*(1+$K$33) -> 36262.56194
B36: Dividend Paid | K36: =IF(K4<'PNGL Financeability'!$AD$8,0,MIN(MAX(0,K21-SUM(K39:K44)),K35)) -> 10534.40665 | L36: =IF(L4<'PNGL Financeability'!$AD$8,0,MIN(MAX(0,L21-SUM(L39:L44)),L35)) -> 20700.27463 | M36: =IF(M4<'PNGL Financeability'!$AD$8,0,MIN(MAX(0,M21-SUM(M39:M44)),M35)) -> 16132.99564 | N36: =IF(N4<'PNGL Financeability'!$AD$8,0,MIN(MAX(0,N21-SUM(N39:N44)),N35)) -> 16628.27861 | O36: =IF(O4<'PNGL Financeability'!$AD$8,0,MIN(MAX(0,O21-SUM(O39:O44)),O35)) -> 0 | P36: =IF(P4<'PNGL Financeability'!$AD$8,0,MIN(MAX(0,P21-SUM(P39:P44)),P35)) -> 36262.56194
B38: Debt
B39: Debt at the start of the year | K39: =+'Pi''s Calc'!C87*DebtPNGL*'PNGL Financeability'!K7 -> 351533.4995 | L39: =+K47 -> 351315.2709 | M39: =+L47 -> 359907.1698 | N39: 367865.4749 | O39: 376786.0381 | P39: 366233.7101
B40: Revenues | K40: =-K9 -> -55708.60172 | L40: -58978.48872 | M40: -62414.20447 | N40: -66033.0966 | O40: -69828.7857 | P40: -73775.91598
B41: Opex | K41: =-K25 -> 15808.44731 | L41: 15945.153 | M41: 16331.83612 | N41: 16774.11535 | O41: 17165.99266 | P41: 17826.59419
B42: Movements in working capital | K42: =+K11 -> -892.4147057 | L42: -191.212185 | M42: 634.4372121 | N42: 243.5588894 | O42: -557.0093506 | P42: -387.3034573
B43: Investment | K43: =DAV!J16*'PNGL Financeability'!K7 -> 11228.8962 | L43: =DAV!K16*'PNGL Financeability'!L7 -> 12081.02166 | M43: =DAV!L16*'PNGL Financeability'!M7 -> 17795.14065 | N43: =DAV!M16*'PNGL Financeability'!N7 -> 21377.86111 | O43: =DAV!N16*'PNGL Financeability'!O7 -> 20372.35445 | P43: =DAV!O16*'PNGL Financeability'!P7 -> 20200.81689
B44: Tax (prior year) | K44: =J30 -> 0 | L44: 0 | M44: 0 | N44: 0 | O44: 2408.946674 | P44: 2725.301714
B45: Dividends | K45: =K36 -> 10534.40665 | L45: 20700.27463 | M45: 16132.99564 | N45: 16628.27861 | O45: 0 | P45: 36262.56194
B46: Interest | K46: =(K39+SUM(K40:K45)/2)*IntPNGL -> 18811.03765 | L46: 19035.15048 | M46: 19478.09998 | N46: 19929.84585 | O46: 19886.17331 | P46: 20221.28558
B47: Debt at the end of the year | K47: =SUM(K39:K46) -> 351315.2709 | L47: =SUM(L39:L46) -> 359907.1698 | M47: 367865.4749 | N47: 376786.0381 | O47: 366233.7101 | P47: 389307.051
B49: Average debt | K49: =AVERAGE(K47,K39) -> 351424.3852 | L49: 355611.2203 | M49: 363886.3223 | N49: 372325.7565 | O49: 371509.8741 | P49: 377770.3806
B51: TRV at start of year (mid-year RPI) | K51: =+'Pi''s Calc'!C87*'PNGL Financeability'!K7 -> 639151.8173 | L51: =+'Pi''s Calc'!D87*'PNGL Financeability'!L7 -> 679217.2557 | M51: =+'Pi''s Calc'!E87*'PNGL Financeability'!M7 -> 707300.4427 | N51: =+'Pi''s Calc'!F87*'PNGL Financeability'!N7 -> 730085.6029 | O51: =+'Pi''s Calc'!G87*'PNGL Financeability'!O7 -> 720226.5623 | P51: =+'Pi''s Calc'!H87*'PNGL Financeability'!P7 -> 742955.6297
B52: TRV at end of year (mid-year RPI) | K52: =+'Pi''s Calc'!D87*'PNGL Financeability'!K7 -> 658986.374 | L52: =+'Pi''s Calc'!E87*'PNGL Financeability'!L7 -> 686233.087 | M52: =+'Pi''s Calc'!F87*'PNGL Financeability'!M7 -> 708339.5779 | N52: =+'Pi''s Calc'!G87*'PNGL Financeability'!N7 -> 698774.1945 | O52: =+'Pi''s Calc'!H87*'PNGL Financeability'!O7 -> 720826.2634 | P52: =+'Pi''s Calc'!I87*'PNGL Financeability'!P7 -> 739244.3381
B53: Average TRV | K53: =AVERAGE(K51:K52) -> 649069.0956 | L53: =AVERAGE(L51:L52) -> 682725.1713 | M53: 707820.0103 | N53: 714429.8987 | O53: 720526.4128 | P53: 741099.9839
B54: PM-FFO as % TRV | K54: =K16/K53 -> 0.04057418985 | L54: 0.04078999834 | M54: 0.04155763598 | N54: 0.04186208953 | O54: 0.03846589804 | P54: 0.03850668638
B55: Gearing ratio | K55: =K49/K53 -> 0.5414283126 | L55: 0.5208702348 | M55: 0.5140944266 | N55: 0.5211508605 | O55: 0.5156089596 | P55: 0.5097427996
B57: Other Relevant metrics
B58: FFO/Net Debt | K58: =SUM(K9+K10+K15-K46)/K49 -> 0.06001039667 | L58: 0.06748433085 | M58: 0.07311148219 | N58: 0.07877278136 | O58: 0.08174122729 | P58: 0.08736189017
B59: FFO/Interest Cover | K59: =SUM((K9+K10+K15-K46)+K46)/K46 -> 2.12110332 | L59: =SUM((L9+L10+L15-L46)+L46)/L46 -> 2.260729999 | M59: 2.365855417 | N59: 2.471618779 | O59: 2.527074746 | P59: 2.632078948 | Q59: =SUM((Q9+Q10-Q46)+Q46)/Q46 -> 
B60: RCF/Capex | K60: =SUM((K9+K10+K15-K46)-K36)/K43 -> 0.9399597187 | L60: =SUM((L9+L10+L15-L46)-L36)/L43 -> 0.272982758 | M60: 0.5884343901 | N60: 0.5941126072 | O60: 1.490631489 | P60: -0.1613710704
B64: Financial Year Corporation Tax Rate | K64: 0.19 | L64: 0.19 | M64: 0.19 | N64: 0.17 | O64: 0.17 | P64: 0.17
B65: Calander Year Corporation Tax Rate | K65: 0.1925 | L65: 0.19 | M65: 0.19 | N65: 0.175 | O65: 0.17 | P65: 0.17

Sheet Building Block
A4: Building Block Method
A6: Year: | C6: 2017 | D6: =C6+1 -> 2018 | E6: =D6+1 -> 2019 | F6: 2020 | G6: 2021 | H6: 2022
A7: Opening: | C7: 0 | D7: =+C11 -> 25895.78179 | E7: =+D11 -> 54820.69427 | F7: =+E11 -> 82421.32243 | G7: =+F11 -> 109112.7796 | H7: =+G11 -> 138609.0021
A8: Cshflow: | C8: ='Pi''s Calc'!D35 -> 25895.78179 | D8: ='Pi''s Calc'!E35 -> 27821.75217 | E8: ='Pi''s Calc'!F35 -> 25265.26658 | F8: ='Pi''s Calc'!G35 -> 23180.30888 | G8: ='Pi''s Calc'!H35 -> 24848.018 | H8: ='Pi''s Calc'!I35 -> 28338.73746
A9: Return on in year cashflow: | C9: 0 | D9: 0 | E9: 0 | F9: 0 | G9: 0 | H9: 0
A10: Return on in year opening: | C10: =C7*'Pi''s Calc'!D6 -> 0 | D10: =D7*'Pi''s Calc'!E6 -> 1103.160304 | E10: =E7*'Pi''s Calc'!F6 -> 2335.361576 | F10: =F7*'Pi''s Calc'!G6 -> 3511.148335 | G10: =G7*'Pi''s Calc'!H6 -> 4648.204413 | H10: =H7*'Pi''s Calc'!I6 -> 5904.743487
A11: Closing: | C11: =SUM(C7:C10) -> 25895.78179 | D11: 54820.69427 | E11: 82421.32243 | F11: 109112.7796 | G11: 138609.0021 | H11: 172852.483
